Workbook

Sheet Инструкция
AA1: (требуется обновление)
B2: Код отчёта: 46EP.STX.EIAS
B3: Версия отчёта: 1.0.0
B5: Сведения об отпуске (передаче) электроэнергии распределительными сетевыми организациями отдельным категориям потребителей Приказ Росстата: Об утверждении формы от 05.09.2018 № 543
B6: Условные обозначения
E8: A | F8: - предназначенные для заполнения | O8: A | P8: - ссылки и автозаполняемые поля
E9: A | F9: - с формулами и константами | O9: A | P9: - обязательные для заполнения
B11: Работа с реестрами
E12: Если в предложенном Вам списке необходимая организация или наименование отсутствуют, обновите списки с помощью элементов управления на листах. Если после обновления Вам не удалось найти необходимую позицию в списке, обратитесь к ответственному за поддержание реестра Вашего региона либо в Отдел сопровождения пользователей ЕИАС.
B13: Проверка отчёта
E14: • При сохранении отчётной формы осуществляется проверка корректности данных • Для каждого сообщения возможны 2 статуса: ошибка и предупреждение • При наличии сообщений со статусом «Ошибка» файл будет отклонён системой и не будет загружен в хранилище данных, сообщения со статусом «Предупреждение» носят информационный характер, и такой файл будет принят к обработке системой

Sheet Титульный
E3: обновление данных для проверки отчёта
E4: Сведения об отпуске (передаче) электроэнергии распределительными сетевыми организациями отдельным категориям потребителей | S4: Форма № 46-ЭЭ (передача)
E6: Субъект РФ | H6: Тюменская область | P6: MANDATORY | S6: Приказ Росстата: Об утверждении формы от 05.09.2018 № 543 | V6: region
E8: =HYPERLINK("https://sp.eias.ru/knowledgebase.php?article=125","Как использовать?") -> Как использовать? | H8: Отчётный период | S8: Месячная, годовая
S10: Сроки предоставления: 25 числа после отчётного месяца, 10 февраля - за отчётный год
E11: Год | H11: 2024 | P11: MANDATORY | V11: rptYear
E12: Месяц | H12: Март | P12: MANDATORY | V12: rptMonth
S15: Предоставляют: - юридические лица, кроме субъектов малого предпринимательства - сетевые организации, осуществляющие оказание услуг по передаче и распределению электрической энергии (мощности); - ПАО "ФСК ЕЭС" Федеральной антимонопольной службе по установленному адресу
E16: RST_ORG_ID
E18: Наименование ЮЛ / ИП | H18: ООО "Агентство Интеллект-Сервис" | P18: MANDATORY | V18: org
E20: ИНН | H20: 7202082778 | P20: MANDATORY | V20: inn
E21: КПП | H21: 720301001 | P21: MANDATORY | V21: kpp
E22: ОГРН | H22: 1037200562200 | P22: MANDATORY | V22: ogrn
E23: Организационно-правовая форма | H23: 1 23 00 | Общества с ограниченной ответственностью | P23: MANDATORY | V23: opf
E25: Вид(-ы) деятельности | H25: РСО | P25: MANDATORY | V25: activity
E27: Тип отчёта | H27: В целом по организации | P27: MANDATORY | V27: rptType
E29: Наименование обособленного подразделения | P29: =IF(H27="По обособленному подразделению","MANDATORY","OPTIONAL") -> OPTIONAL | V29: subsidiary
E33: Код по ОКПО | H33: 47063924 | P33: MANDATORY | S33: ОКПО - Общероссийский Классификатор Предприятий и Организаций | V33: okpo
E35: ОКАТО | H35: 71401000000 | P35: MANDATORY | S35: ОКАТО - Общероссийский Классификатор Административно-Территориальных Образований | V35: okato
E37: Муниципальный район | H37: город Тюмень | P37: MANDATORY | V37: mr
E39: Муниципальное образование | H39: город Тюмень | P39: MANDATORY | V39: mo
E41: ОКТМО | H41: 71701000 | P41: MANDATORY | S41: ОКТМО - Общероссийский Классификатор Территорий Муниципальных Образований | V41: oktmo
E43: Котлодержатель | H43: Нет | P43: MANDATORY | V43: ktlKeeper
E45: Система налогообложения | H45: ОСН | P45: MANDATORY | S45: ОСН - общая система налогообложения УСН - упрощенная система налогообложения ПСН - патентная система налогообложения ЕНВД - вмененная система налогообложения или единый налог на вмененный доход ЕСХН - единый сельскохозяйственный налог | V45: taxSystem
E60: Контактные данные
E62: Адрес организации | F62: Юридический | H62: 625048 Тюменская область город Тюмень улица Новгородская д.10 стр.76 | P62: MANDATORY | V62: addressLegal
F63: Почтовый | H63: 625048 Тюменская область город Тюмень улица Новгородская д.10 стр.76 | P63: MANDATORY | V63: addressPost
E64: Руководитель | F64: ФИО | H64: Федоров Андрей Владимирович | P64: MANDATORY | V64: nameCEO
F65: Контактный телефон | H65: 8 (3452) 56-86-58 | P65: MANDATORY | V65: phoneCEO
E66: Главный бухгалтер | F66: ФИО | H66: Рябкова Татьяна Петровна | P66: MANDATORY | V66: nameAccountant
F67: Контактный телефон | H67: 8-919-938-94-89 | P67: MANDATORY | V67: phoneAccountant
E68: Должностное лицо, ответственное за составление формы | F68: ФИО | H68: Андреева Любовь Леонтьевна | P68: MANDATORY | V68: nameReporting
F69: Должность | H69: экономист | P69: MANDATORY | V69: positionReporting
F70: Контактный телефон | H70: 8 (3452) 56-86-58 | P70: MANDATORY | V70: phoneReporting
F71: e-mail | H71: ais7213@mail.ru | P71: MANDATORY | V71: emailReporting
E75: Дата последнего обновления реестра организаций: 19.02.2024, 09:56:05
E78: Если срок представления отчёта за период истёк, необходимо указать URL-ссылку на пояснительную записку (документ) | S78: URL-ссылку на пояснительную записку (документ) необходимо указывать только в случае, если срок представления отчёта за период истёк
E80: Образец пояснительной записки (документа) можно скачать по ссылке | H80: =HYPERLINK("https://eias.ru/files/46ep.stx.eias.justification.rtf","Загрузить") -> Загрузить
H85: ="Статистика предоставления отчётов за "&IF(YEAR="","(год не выбран)",YEAR&" год") -> Статистика предоставления отчётов за 2024 год
E86: Январь | F86: Дата отчёта | H86: 19.02.2024 09:16:11
F87: Статус отчёта | H87: Принят
E88: Февраль | F88: Дата отчёта | H88: 20.03.2024 12:10:23
F89: Статус отчёта | H89: Принят
E90: Март | F90: Дата отчёта
F91: Статус отчёта
E92: Апрель | F92: Дата отчёта
F93: Статус отчёта
E94: Май | F94: Дата отчёта
F95: Статус отчёта
E96: Июнь | F96: Дата отчёта
F97: Статус отчёта
E98: Июль | F98: Дата отчёта
F99: Статус отчёта
E100: Август | F100: Дата отчёта
F101: Статус отчёта
E102: Сентябрь | F102: Дата отчёта
F103: Статус отчёта
E104: Октябрь | F104: Дата отчёта
F105: Статус отчёта
E106: Ноябрь | F106: Дата отчёта
F107: Статус отчёта
E108: Декабрь | F108: Дата отчёта
F109: Статус отчёта
E112: Источник данных для выбора организаций на листе "Отпуск ЭЭ сет организациями" | H112: Реестр ФГИС ЕИАС

Sheet Отпуск ЭЭ сет организациями
H3: issueTtl | I3: issueHV | J3: issueAV1 | K3: issueAV2 | L3: issueLV | N3: splrNumber | O3: splrName | P3: splrOgrn | Q3: splrInn | R3: splrKpp | S3: splrSource | T3: rowType
D8: Сведения об отпуске (передаче) электроэнергии распределительными сетевыми организациями отдельным категориям потребителей
D9: =IF(ORG="","Не определено",ORG) -> ООО "Агентство Интеллект-Сервис"
L10: Коды по ОКЕИ: 1000 киловатт-часов – 245, мегаватт – 215, тысяча рублей – 384
D11: № п/п | E11: Потребители | F11: Единица измерения | G11: Код строки | H11: Всего | I11: В том числе по уровню напряжения
I12: ВН | J12: СН1 | K12: СН2 | L12: НН
D13: 0 | E13: 1 | F13: 2 | G13: 3 | H13: 4 | I13: 5 | J13: 6 | K13: 7 | L13: 8
D14: I. Электроэнергия
D15: 1 | E15: Поступление в сеть из других организаций: | F15: тыс.кВт*ч | G15: 10 | H15: =SUM(I15:L15) -> 11154.275 | I15: =SUM(I16,I17,I21,I24) -> 8606.159 | J15: =SUM(J16,J17,J21,J24) -> 0 | K15: =SUM(K16,K17,K21,K24) -> 2548.116 | L15: =SUM(L16,L17,L21,L24) -> 0 | T15: STATIC
D16: 1.1 | E16: из сетей ПАО "ФСК ЕЭС" | F16: тыс.кВт*ч | G16: 20 | H16: =SUM(I16:L16) -> 0 | I16: 0 | J16: 0 | K16: 0 | L16: 0 | T16: STATIC
D17: 1.2 | E17: от генерирующих компаний и блок-станций: | F17: тыс.кВт*ч | G17: 30 | H17: =SUM(I17:L17) -> 1369.549 | I17: =SUM(I18:I20) -> 1369.549 | J17: =SUM(J18:J20) -> 0 | K17: =SUM(K18:K20) -> 0 | L17: =SUM(L18:L20) -> 0 | T17: STATIC
N18: 0
C19: × | D19: ="1.2."&N19 -> 1.2.1 | E19: ПАО "Форвард Энерго" (Тюменская ТЭЦ-1) | F19: тыс.кВт*ч | G19: 30 | H19: =SUM(I19:L19) -> 1369.549 | I19: 1369.549 | J19: 0 | K19: 0 | L19: 0 | N19: 1 | O19: ПАО "Форвард Энерго" (Тюменская ТЭЦ-1) | P19: 1058602102437 | Q19: 7203162698 | R19: 720302001 | S19: RST_ORG | T19: DYNAMIC.ENR.INCOME.GEN
E20: Добавить организацию | T20: INSERT.ENR.INCOME.GEN
D21: 1.3 | E21: от несетевых организаций: | F21: тыс.кВт*ч | G21: 230 | H21: =SUM(I21:L21) -> 0 | I21: =SUM(I22:I23) -> 0 | J21: =SUM(J22:J23) -> 0 | K21: =SUM(K22:K23) -> 0 | L21: =SUM(L22:L23) -> 0 | T21: STATIC
N22: 0
E23: Добавить организацию | T23: INSERT.ENR.INCOME.NON.NET
D24: 1.4 | E24: от смежных сетевых организаций: | F24: тыс.кВт*ч | G24: 430 | H24: =SUM(I24:L24) -> 9784.726 | I24: =SUM(I25:I32) -> 7236.61 | J24: =SUM(J25:J32) -> 0 | K24: =SUM(K25:K32) -> 2548.116 | L24: =SUM(L25:L32) -> 0 | T24: STATIC
N25: 0
C26: × | D26: ="1.4."&N26 -> 1.4.1 | E26: АО "Россети Тюмень" | F26: тыс.кВт*ч | G26: 430 | H26: =SUM(I26:L26) -> 7373.163 | I26: 7236.61 | J26: 0 | K26: 136.553 | L26: 0 | N26: 1 | O26: АО "Россети Тюмень" | P26: 1028600587399 | Q26: 8602060185 | R26: 997650001 | S26: RST_ORG | T26: DYNAMIC.ENR.INCOME.ADJACENT.NET
C27: × | D27: 1.4.2 | E27: ООО "ЭЛЕКОНТ" | F27: тыс.кВт*ч | G27: 430 | H27: 80.162 | I27: 0 | J27: 0 | K27: 80.162 | L27: 0 | N27: 2 | O27: ООО "ЭЛЕКОНТ" | P27: 1127232000488 | Q27: 7224046773 | R27: 722401001 | S27: RST_ORG | T27: DYNAMIC.ENR.INCOME.ADJACENT.NET
C28: × | D28: 1.4.3 | E28: АО "СУЭНКО" | F28: тыс.кВт*ч | G28: 430 | H28: 1479.178 | I28: 0 | J28: 0 | K28: 1479.178 | L28: 0 | N28: 3 | O28: АО "СУЭНКО" | P28: 1027201233620 | Q28: 7205011944 | R28: 720301001 | S28: RST_ORG | T28: DYNAMIC.ENR.INCOME.ADJACENT.NET
C29: × | D29: 1.4.4 | E29: ООО "Дорстрой" | F29: тыс.кВт*ч | G29: 430 | H29: 187.971 | I29: 0 | J29: 0 | K29: 187.971 | L29: 0 | N29: 4 | O29: ООО "Дорстрой" | P29: 1037200650937 | Q29: 7204080494 | R29: 720301001 | S29: RST_ORG | T29: DYNAMIC.ENR.INCOME.ADJACENT.NET
C30: × | D30: 1.4.5 | E30: ООО "Региональная энергетическая компания" | F30: тыс.кВт*ч | G30: 430 | H30: 344.968 | I30: 0 | J30: 0 | K30: 344.968 | L30: 0 | N30: 5 | O30: ООО "Региональная энергетическая компания" | P30: 1177232006104 | Q30: 7203412147 | R30: 720301001 | S30: RST_ORG | T30: DYNAMIC.ENR.INCOME.ADJACENT.NET
C31: × | D31: 1.4.6 | E31: ООО «Газпром энерго» в зоне деятельности Сургутского филиала Общества с ограниченной ответственностью «Газпром энерго» | F31: тыс.кВт*ч | G31: 430 | H31: 319.284 | I31: 0 | J31: 0 | K31: 319.284 | L31: 0 | N31: 6 | O31: ООО «Газпром энерго» в зоне деятельности Сургутского филиала Общества с ограниченной ответственностью «Газпром энерго» | P31: 1027739841370 | Q31: 7736186950 | R31: 860202001 | S31: RST_ORG | T31: DYNAMIC.ENR.INCOME.ADJACENT.NET
E32: Добавить организацию | T32: INSERT.ENR.INCOME.ADJACENT.NET
D33: 2 | E33: Поступление в сеть из других уровней напряжения (трансформация) | F33: тыс.кВт*ч | G33: 630 | H33: =SUM(I33:L33) -> 8427.843 | I33: =SUM(I35,I36,I37) -> 0 | J33: =SUM(J34,J36,J37) -> 0 | K33: =SUM(K34,K35,K37) -> 4420.269 | L33: =SUM(L34,L35,L36) -> 4007.574 | T33: STATIC
D34: 2.1 | E34: ВН | F34: тыс.кВт*ч | G34: 640 | H34: 4420.269 | J34: 0 | K34: 4420.269 | L34: 0 | T34: STATIC
D35: 2.2 | E35: СН1 | F35: тыс.кВт*ч | G35: 650 | H35: 0 | K35: 0 | L35: 0 | T35: STATIC
D36: 2.3 | E36: СН2 | F36: тыс.кВт*ч | G36: 660 | H36: 4007.574 | L36: 4007.574 | T36: STATIC
D37: 2.4 | E37: НН | F37: тыс.кВт*ч | G37: 670 | H37: 0 | T37: STATIC
D38: 3 | E38: Генерация на установках организации (совмещение деятельности) | F38: тыс.кВт*ч | G38: 680 | H38: 0 | T38: STATIC
D39: 4 | E39: Отпуск из сети: | F39: тыс.кВт*ч | G39: 690 | H39: 10285.41 | I39: =SUM(I40,I42,I45,I51) -> 4016.24 | J39: =SUM(J40,J42,J45,J51) -> 0 | K39: =SUM(K40,K42,K45,K51) -> 2735.758 | L39: =SUM(L40,L42,L45,L51) -> 3533.412 | T39: STATIC
D40: 4.1 | E40: прямым прочим потребителям по договорам оказания услуг по передаче электрической энергии | F40: тыс.кВт*ч | G40: 700 | H40: 0 | I40: 0 | J40: 0 | K40: 0 | L40: 0 | T40: STATIC
D41: 4.1.1 | E41: из них потребителям, опосредованно подключённым к шинам генераторов | F41: тыс.кВт*ч | G41: 710 | H41: 0 | I41: 0 | J41: 0 | K41: 0 | L41: 0 | T41: STATIC
D42: 4.2 | E42: потребителям ГП, ЭСО, ЭСК, в том числе: | F42: тыс.кВт*ч | G42: 720 | H42: 3412.856 | I42: 367.25 | J42: 0 | K42: 1984.816 | L42: 1060.79 | T42: STATIC
D43: 4.2.1 | E43: прочим потребителям, в том числе: | F43: тыс.кВт*ч | G43: 730 | H43: 3412.856 | I43: 367.25 | J43: 0 | K43: 1984.816 | L43: 1060.79 | T43: STATIC
D44: 4.2.1.1 | E44: потребителям, опосредованно подключённым к шинам генераторов | F44: тыс.кВт*ч | G44: 740 | H44: 0 | I44: 0 | J44: 0 | K44: 0 | L44: 0 | T44: STATIC
D45: 4.3 | E45: смежным сетевым организациям: | F45: тыс.кВт*ч | G45: 750 | H45: 4251.309 | I45: =SUM(I46:I50) -> 3648.99 | J45: =SUM(J46:J50) -> 0 | K45: =SUM(K46:K50) -> 602.319 | L45: =SUM(L46:L50) -> 0 | T45: STATIC
N46: 0
C47: × | D47: ="4.3."&N47 -> 4.3.1 | E47: АО "СУЭНКО" | F47: тыс.кВт*ч | G47: 750 | H47: =SUM(I47:L47) -> 3664.668 | I47: 3124.354 | J47: 0 | K47: 540.314 | L47: 0 | N47: 1 | O47: АО "СУЭНКО" | P47: 1027201233620 | Q47: 7205011944 | R47: 720301001 | S47: RST_ORG | T47: DYNAMIC.ENR.OUTCOME.ADJACENT.NET
C48: × | D48: ="4.3."&N48 -> 4.3.2 | E48: ООО "Региональная энергетическая компания" | F48: тыс.кВт*ч | G48: 750 | H48: =SUM(I48:L48) -> 570.328 | I48: 524.636 | J48: 0 | K48: 45.692 | L48: 0 | N48: 2 | O48: ООО "Региональная энергетическая компания" | P48: 1177232006104 | Q48: 7203412147 | R48: 720301001 | S48: RST_ORG | T48: DYNAMIC.ENR.OUTCOME.ADJACENT.NET
C49: × | D49: ="4.3."&N49 -> 4.3.3 | E49: ООО "Дорстрой" | F49: тыс.кВт*ч | G49: 750 | H49: =SUM(I49:L49) -> 16.313 | I49: 0 | J49: 0 | K49: 16.313 | L49: 0 | N49: 3 | O49: ООО "Дорстрой" | P49: 1037200650937 | Q49: 7204080494 | R49: 720301001 | S49: RST_ORG | T49: DYNAMIC.ENR.OUTCOME.ADJACENT.NET
E50: Добавить организацию | T50: INSERT.ENR.OUTCOME.ADJACENT.NET
D51: 4.4 | E51: население и приравненные к ним группы | F51: тыс.кВт*ч | G51: 950 | H51: =SUM(I51:L51) -> 2621.245 | I51: 0 | J51: 0 | K51: 148.623 | L51: 2472.622 | T51: STATIC
D52: 5 | E52: Отпуск в сеть других уровней напряжения | F52: тыс.кВт*ч | G52: 960 | H52: 8427.843 | I52: 4420.269 | J52: 0 | K52: 4007.574 | L52: 0 | T52: STATIC
D53: 6 | E53: Хозяйственные нужды организации | F53: тыс.кВт*ч | G53: 970 | H53: 0 | I53: 0 | J53: 0 | K53: 0 | L53: 0 | T53: STATIC
D54: 7 | E54: Собственное потребление (совмещение деятельности) | F54: тыс.кВт*ч | G54: 980 | H54: 0 | I54: 0 | J54: 0 | K54: 0 | L54: 0 | T54: STATIC
D55: 8 | E55: Общий объём потерь (фактические объёмы), в том числе: | F55: тыс.кВт*ч | G55: 990 | H55: 868.865 | I55: 169.65 | J55: 0 | K55: 225.053 | L55: 474.162 | T55: STATIC
D56: 8.1 | E56: относимые на собственное потребление (фактическое значение) | F56: тыс.кВт*ч | G56: 1000 | H56: 0 | I56: 0 | J56: 0 | K56: 0 | L56: 0 | T56: STATIC
D57: 9 | E57: Нормативные потери (объёмы потерь, учтённые в сводном прогнозном балансе) | F57: тыс.кВт*ч | G57: 1010 | H57: 430 | I57: 7 | J57: 0 | K57: 97 | L57: 326 | T57: STATIC
D58: 10 | E58: Объём превышения фактических объёмов потерь электрической энергии над объёмами потерь, учтёнными в сводном прогнозном балансе за соответствующий расчётный период | F58: тыс.кВт*ч | G58: 1020 | H58: 438.865 | I58: =I55-I57 -> 162.65 | J58: =J55-J57 -> 0 | K58: =K55-K57 -> 128.053 | L58: =L55-L57 -> 148.162 | T58: STATIC
D59: 11 | E59: Небаланс | F59: тыс.кВт*ч | G59: 1030 | H59: 0 | I59: =SUM(I15,I33,I38)-SUM(I39,I52:I55) -> 0 | J59: =SUM(J15,J33,J38)-SUM(J39,J52:J55) -> 0 | K59: =SUM(K15,K33,K38)-SUM(K39,K52:K55) -> 0 | L59: =SUM(L15,L33,L38)-SUM(L39,L52:L55) -> 0 | T59: STATIC
D60: II. Мощность
D61: 12 | E61: Поступление в сеть из других организаций: | F61: МВт | G61: 1040 | H61: =SUM(I61:L61) -> 19.231 | I61: =SUM(I62,I63,I67,I70) -> 14.838 | J61: =SUM(J62,J63,J67,J70) -> 0 | K61: =SUM(K62,K63,K67,K70) -> 4.393 | L61: =SUM(L62,L63,L67,L70) -> 0 | T61: STATIC
D62: 12.1 | E62: из сетей ПАО "ФСК ЕЭС" | F62: МВт | G62: 1050 | H62: =SUM(I62:L62) -> 0 | I62: 0 | J62: 0 | K62: 0 | L62: 0 | T62: STATIC
D63: 12.2 | E63: от генерирующих компаний и блок-станций: | F63: МВт | G63: 1060 | H63: =SUM(I63:L63) -> 2.361 | I63: =SUM(I64:I66) -> 2.361 | J63: =SUM(J64:J66) -> 0 | K63: =SUM(K64:K66) -> 0 | L63: =SUM(L64:L66) -> 0 | T63: STATIC
N64: 0
C65: × | D65: ="12.2."&N65 -> 12.2.1 | E65: ПАО "Форвард Энерго" (Тюменская ТЭЦ-1) | F65: МВт | G65: 1060 | H65: =SUM(I65:L65) -> 2.361 | I65: 2.361 | J65: 0 | K65: 0 | L65: 0 | N65: 1 | O65: ПАО "Форвард Энерго" (Тюменская ТЭЦ-1) | P65: 1058602102437 | Q65: 7203162698 | R65: 720302001 | S65: RST_ORG | T65: DYNAMIC.PWR.INCOME.GEN
E66: Добавить организацию | T66: INSERT.PWR.INCOME.GEN
D67: 12.3 | E67: от несетевых организаций: | F67: МВт | G67: 1260 | H67: =SUM(I67:L67) -> 0 | I67: =SUM(I68:I69) -> 0 | J67: =SUM(J68:J69) -> 0 | K67: =SUM(K68:K69) -> 0 | L67: =SUM(L68:L69) -> 0 | T67: STATIC
N68: 0
E69: Добавить организацию | T69: INSERT.PWR.INCOME.NON.NET
D70: 12.4 | E70: от смежных сетевых организаций: | F70: МВт | G70: 1460 | H70: =SUM(I70:L70) -> 16.87 | I70: =SUM(I71:I78) -> 12.477 | J70: =SUM(J71:J78) -> 0 | K70: =SUM(K71:K78) -> 4.393 | L70: =SUM(L71:L78) -> 0 | T70: STATIC
N71: 0
C72: × | D72: ="12.4."&N72 -> 12.4.1 | E72: АО "Россети Тюмень" | F72: МВт | G72: 1460 | H72: =SUM(I72:L72) -> 12.712 | I72: 12.477 | J72: 0 | K72: 0.235 | L72: 0 | N72: 1 | O72: АО "Россети Тюмень" | P72: 1028600587399 | Q72: 8602060185 | R72: 997650001 | S72: RST_ORG | T72: DYNAMIC.PWR.INCOME.ADJACENT.NET
C73: × | D73: 12.4.2 | E73: ООО "ЭЛЕКОНТ" | F73: МВт | G73: 1460 | H73: 0.138 | I73: 0 | J73: 0 | K73: 0.138 | L73: 0 | N73: 2 | O73: ООО "ЭЛЕКОНТ" | P73: 1127232000488 | Q73: 7224046773 | R73: 722401001 | S73: RST_ORG | T73: DYNAMIC.PWR.INCOME.ADJACENT.NET
C74: × | D74: 12.4.3 | E74: АО "СУЭНКО" | F74: МВт | G74: 1460 | H74: 2.55 | I74: 0 | J74: 0 | K74: 2.55 | L74: 0 | N74: 3 | O74: АО "СУЭНКО" | P74: 1027201233620 | Q74: 7205011944 | R74: 720301001 | S74: RST_ORG | T74: DYNAMIC.PWR.INCOME.ADJACENT.NET
C75: × | D75: 12.4.4 | E75: ООО "Дорстрой" | F75: МВт | G75: 1460 | H75: 0.324 | I75: 0 | J75: 0 | K75: 0.324 | L75: 0 | N75: 4 | O75: ООО "Дорстрой" | P75: 1037200650937 | Q75: 7204080494 | R75: 720301001 | S75: RST_ORG | T75: DYNAMIC.PWR.INCOME.ADJACENT.NET
C76: × | D76: 12.4.5 | E76: ООО "Региональная энергетическая компания" | F76: МВт | G76: 1460 | H76: 0.595 | I76: 0 | J76: 0 | K76: 0.595 | L76: 0 | N76: 5 | O76: ООО "Региональная энергетическая компания" | P76: 1177232006104 | Q76: 7203412147 | R76: 720301001 | S76: RST_ORG | T76: DYNAMIC.PWR.INCOME.ADJACENT.NET
C77: × | D77: 12.4.6 | E77: ООО «Газпром энерго» в зоне деятельности Сургутского филиала Общества с ограниченной ответственностью «Газпром энерго» | F77: МВт | G77: 1460 | H77: 0.551 | I77: 0 | J77: 0 | K77: 0.551 | L77: 0 | N77: 6 | O77: ООО «Газпром энерго» в зоне деятельности Сургутского филиала Общества с ограниченной ответственностью «Газпром энерго» | P77: 1027739841370 | Q77: 7736186950 | R77: 860202001 | S77: RST_ORG | T77: DYNAMIC.PWR.INCOME.ADJACENT.NET
E78: Добавить организацию | T78: INSERT.PWR.INCOME.ADJACENT.NET
D79: 13 | E79: Поступление в сеть из других уровней напряжения (трансформация) | F79: МВт | G79: 1660 | H79: =SUM(I79:L79) -> 14.531 | I79: =SUM(I81,I82,I83) -> 0 | J79: =SUM(J80,J82,J83) -> 0 | K79: =SUM(K80,K81,K83) -> 7.621 | L79: =SUM(L80,L81,L82) -> 6.91 | T79: STATIC
D80: 13.1 | E80: ВН | F80: МВт | G80: 1670 | H80: 7.621 | J80: 0 | K80: 7.621 | L80: 0 | T80: STATIC
D81: 13.2 | E81: СН1 | F81: МВт | G81: 1680 | H81: 0 | K81: 0 | L81: 0 | T81: STATIC
D82: 13.3 | E82: СН2 | F82: МВт | G82: 1690 | H82: 6.91 | L82: 6.91 | T82: STATIC
D83: 13.4 | E83: НН | F83: МВт | G83: 1700 | H83: 0 | T83: STATIC
D84: 14 | E84: Генерация на установках организации (совмещение деятельности) | F84: МВт | G84: 1710 | H84: 0 | T84: STATIC
D85: 15 | E85: Отпуск из сети: | F85: МВт | G85: 1720 | H85: 17.734 | I85: =SUM(I86,I88,I91,I97) -> 6.925 | J85: =SUM(J86,J88,J91,J97) -> 0 | K85: =SUM(K86,K88,K91,K97) -> 4.717 | L85: =SUM(L86,L88,L91,L97) -> 6.092 | T85: STATIC
D86: 15.1 | E86: прямым прочим потребителям по договорам оказания услуг по передаче электрической энергии | F86: МВт | G86: 1730 | H86: 0 | I86: 0 | J86: 0 | K86: 0 | L86: 0 | T86: STATIC
D87: 15.1.1 | E87: из них потребителям, опосредованно подключённым к шинам генераторов | F87: МВт | G87: 1740 | H87: 0 | I87: 0 | J87: 0 | K87: 0 | L87: 0 | T87: STATIC
D88: 15.2 | E88: потребителям ГП, ЭСО, ЭСК, в том числе: | F88: МВт | G88: 1750 | H88: 5.884 | I88: 0.633 | J88: 0 | K88: 3.422 | L88: 1.829 | T88: STATIC
D89: 15.2.1 | E89: прочим потребителям, в том числе: | F89: МВт | G89: 1760 | H89: 5.884 | I89: 0.633 | J89: 0 | K89: 3.422 | L89: 1.829 | T89: STATIC
D90: 15.2.1.1 | E90: потребителям, опосредованно подключённым к шинам генераторов | F90: МВт | G90: 1770 | H90: 0 | I90: 0 | J90: 0 | K90: 0 | L90: 0 | T90: STATIC
D91: 15.3 | E91: смежным сетевым организациям: | F91: МВт | G91: 1780 | H91: 7.331 | I91: =SUM(I92:I96) -> 6.292 | J91: =SUM(J92:J96) -> 0 | K91: =SUM(K92:K96) -> 1.039 | L91: =SUM(L92:L96) -> 0 | T91: STATIC
N92: 0
C93: × | D93: ="15.3."&N93 -> 15.3.1 | E93: АО "СУЭНКО" | F93: МВт | G93: 1780 | H93: =SUM(I93:L93) -> 6.319 | I93: 5.387 | J93: 0 | K93: 0.932 | L93: 0 | N93: 1 | O93: АО "СУЭНКО" | P93: 1027201233620 | Q93: 7205011944 | R93: 720301001 | S93: RST_ORG | T93: DYNAMIC.PWR.OUTCOME.ADJACENT.NET
C94: × | D94: ="15.3."&N94 -> 15.3.2 | E94: ООО "Региональная энергетическая компания" | F94: МВт | G94: 1780 | H94: =SUM(I94:L94) -> 0.984 | I94: 0.905 | J94: 0 | K94: 0.079 | L94: 0 | N94: 2 | O94: ООО "Региональная энергетическая компания" | P94: 1177232006104 | Q94: 7203412147 | R94: 720301001 | S94: RST_ORG | T94: DYNAMIC.PWR.OUTCOME.ADJACENT.NET
C95: × | D95: ="15.3."&N95 -> 15.3.3 | E95: ООО "Дорстрой" | F95: МВт | G95: 1780 | H95: =SUM(I95:L95) -> 0.028 | I95: 0 | J95: 0 | K95: 0.028 | L95: 0 | N95: 3 | O95: ООО "Дорстрой" | P95: 1037200650937 | Q95: 7204080494 | R95: 720301001 | S95: RST_ORG | T95: DYNAMIC.PWR.OUTCOME.ADJACENT.NET
E96: Добавить организацию | T96: INSERT.PWR.OUTCOME.ADJACENT.NET
D97: 15.4 | E97: население и приравненные к ним группы | F97: МВт | G97: 1980 | H97: =SUM(I97:L97) -> 4.519 | I97: 0 | J97: 0 | K97: 0.256 | L97: 4.263 | T97: STATIC
D98: 16 | E98: Отпуск в сеть других уровней напряжения | F98: МВт | G98: 1990 | H98: 14.531 | I98: 7.621 | J98: 0 | K98: 6.91 | L98: 0 | T98: STATIC
D99: 17 | E99: Хозяйственные нужды организации | F99: МВт | G99: 2000 | H99: 0 | I99: 0 | J99: 0 | K99: 0 | L99: 0 | T99: STATIC
D100: 18 | E100: Собственное потребление (совмещение деятельности) | F100: МВт | G100: 2010 | H100: 0 | I100: 0 | J100: 0 | K100: 0 | L100: 0 | T100: STATIC
D101: 19 | E101: Общий объём потерь (фактические объёмы), в том числе: | F101: МВт | G101: 2020 | H101: 1.499 | I101: 0.293 | J101: 0 | K101: 0.388 | L101: 0.818 | T101: STATIC
D102: 19.1 | E102: относимые на собственное потребление | F102: МВт | G102: 2030 | H102: 0 | I102: 0 | J102: 0 | K102: 0 | L102: 0 | T102: STATIC
D103: 20 | E103: Нормативные потери (объёмы потерь, учтённые в сводном прогнозном балансе) | F103: МВт | G103: 2040 | H103: 0.741 | I103: 0.012 | J103: 0 | K103: 0.167 | L103: 0.562 | T103: STATIC
D104: 21 | E104: Объём превышения фактических объёмов потерь электрической энергии над объёмами потерь, учтёнными в сводном прогнозном балансе за соответствующий расчётный период | F104: МВт | G104: 2050 | H104: 0.758 | I104: =I101-I103 -> 0.281 | J104: =J101-J103 -> 0 | K104: =K101-K103 -> 0.221 | L104: =L101-L103 -> 0.256 | T104: STATIC
D105: 22 | E105: Небаланс | F105: МВт | G105: 2060 | H105: -0.002 | I105: =SUM(I61,I79,I84)-SUM(I85,I98:I101) -> -0.001 | J105: =SUM(J61,J79,J84)-SUM(J85,J98:J101) -> 0 | K105: =SUM(K61,K79,K84)-SUM(K85,K98:K101) -> -0.001 | L105: =SUM(L61,L79,L84)-SUM(L85,L98:L101) -> 0 | T105: STATIC
D106: III. Мощность
D107: 23 | E107: Заявленная мощность | F107: МВт | G107: 2070 | H107: =SUM(I107:L107) -> 19.231 | I107: 14.838 | J107: 0 | K107: 4.393 | L107: 0 | T107: STATIC
D108: 24 | E108: Максимальная мощность | F108: МВт | G108: 2080 | H108: =SUM(I108:L108) -> 35.077 | I108: 30.684 | J108: 0 | K108: 4.393 | L108: 0 | T108: STATIC
D109: 25 | E109: Резервируемая мощность | F109: МВт | G109: 2090 | H109: =SUM(I109:L109) -> 15.846 | I109: 15.846 | J109: 0 | K109: 0 | L109: 0 | T109: STATIC
D110: IV. Фактический полезный отпуск конечным потребителям
D111: 26 | E111: Полезный отпуск конечным потребителям: | F111: тыс.кВт*ч | G111: 2100 | H111: =SUM(I111:L111) -> 0 | I111: =SUM(I112,I113) -> 0 | J111: =SUM(J112,J113) -> 0 | K111: =SUM(K112,K113) -> 0 | L111: =SUM(L112,L113) -> 0 | T111: STATIC
D112: 26.1 | E112: по одноставочному тарифу | F112: тыс.кВт*ч | G112: 2110 | H112: 0 | I112: 0 | J112: 0 | K112: 0 | L112: 0 | T112: STATIC
D113: 26.2 | E113: по двухставочному тарифу: | F113: тыс.кВт*ч | G113: 2120 | H113: 0 | I113: =I116 -> 0 | J113: =J116 -> 0 | K113: =K116 -> 0 | L113: =L116 -> 0 | T113: STATIC
D114: 26.2.1 | E114: мощность, в том числе: | F114: МВт | G114: 2130 | H114: 0 | I114: 0 | J114: 0 | K114: 0 | L114: 0 | T114: STATIC
D115: 26.2.1.1 | E115: опосредованно подключённым к шинам генераторов | F115: МВт | G115: 2140 | H115: 0 | I115: 0 | J115: 0 | K115: 0 | L115: 0 | T115: STATIC
D116: 26.2.2 | E116: компенсация потерь | F116: тыс.кВт*ч | G116: 2150 | H116: 0 | I116: 0 | J116: 0 | K116: 0 | L116: 0 | T116: STATIC
D117: 27 | E117: Полезный отпуск потребителям ГП, ЭСО: | F117: тыс.кВт*ч | G117: 2160 | H117: 6034.101 | I117: =SUM(I118,I134) -> 367.25 | J117: =SUM(J118,J134) -> 0 | K117: =SUM(K118,K134) -> 2133.439 | L117: =SUM(L118,L134) -> 3533.412 | T117: STATIC
D118: 27.1 | E118: по одноставочному тарифу: | F118: тыс.кВт*ч | G118: 2170 | H118: 5908.192 | I118: =SUM(I119:I120) -> 363.529 | J118: =SUM(J119:J120) -> 0 | K118: =SUM(K119:K120) -> 2108.354 | L118: =SUM(L119:L120) -> 3436.309 | T118: STATIC
D119: 27.1.1 | E119: прочим потребителям | F119: тыс.кВт*ч | G119: 2180 | H119: 3286.947 | I119: 363.529 | J119: 0 | K119: 1959.731 | L119: 963.687 | T119: STATIC
D120: 27.1.2 | E120: населению и приравненным к нему категориям потребителей: | F120: тыс.кВт*ч | G120: 2190 | H120: 2621.245 | I120: =SUM(I121,I124,I127,I130:I133) -> 0 | J120: =SUM(J121,J124,J127,J130:J133) -> 0 | K120: =SUM(K121,K124,K127,K130:K133) -> 148.623 | L120: =SUM(L121,L124,L127,L130:L133) -> 2472.622 | T120: STATIC
D121: 27.1.2.1 | E121: Населению, проживающему в городских населенных пунктах в домах, не оборудованных в установленном порядке стационарными электроплитами и (или) электроотопительными установками и приравненным к нему категориям потребителей: | F121: тыс.кВт*ч | G121: 2200 | H121: 122.037 | I121: =SUM(I122:I123) -> 0 | J121: =SUM(J122:J123) -> 0 | K121: =SUM(K122:K123) -> 81.182 | L121: =SUM(L122:L123) -> 40.855 | T121: STATIC
D122: 27.1.2.1.1 | E122: в пределах социальной нормы потребления | F122: тыс.кВт*ч | G122: 2210 | H122: 122.037 | I122: 0 | J122: 0 | K122: 81.182 | L122: 40.855 | T122: STATIC
D123: 27.1.2.1.2 | E123: сверх социальной нормы потребления | F123: тыс.кВт*ч | G123: 2220 | H123: 0 | I123: 0 | J123: 0 | K123: 0 | L123: 0 | T123: STATIC
D124: 27.1.2.2 | E124: Населению, проживающему в городских населенных пунктах в домах, оборудованных в установленном порядке стационарными электроплитами и электроотопительными установками и приравненным к нему категориям потребителей: | F124: тыс.кВт*ч | G124: 2230 | H124: 1849.92 | I124: =SUM(I125:I126) -> 0 | J124: =SUM(J125:J126) -> 0 | K124: =SUM(K125:K126) -> 56.64 | L124: =SUM(L125:L126) -> 1793.28 | T124: STATIC
D125: 27.1.2.2.1 | E125: в пределах социальной нормы потребления | F125: тыс.кВт*ч | G125: 2240 | H125: 1849.92 | I125: 0 | J125: 0 | K125: 56.64 | L125: 1793.28 | T125: STATIC
D126: 27.1.2.2.2 | E126: сверх социальной нормы потребления | F126: тыс.кВт*ч | G126: 2250 | H126: 0 | I126: 0 | J126: 0 | K126: 0 | L126: 0 | T126: STATIC
D127: 27.1.2.3 | E127: Населению, проживающему в сельских населенных пунктах и приравненным к нему потребителям: | F127: тыс.кВт*ч | G127: 2260 | H127: 0 | I127: =SUM(I128:I129) -> 0 | J127: =SUM(J128:J129) -> 0 | K127: =SUM(K128:K129) -> 0 | L127: =SUM(L128:L129) -> 0 | T127: STATIC
D128: 27.1.2.3.1 | E128: в пределах социальной нормы потребления | F128: тыс.кВт*ч | G128: 2270 | H128: 0 | I128: 0 | J128: 0 | K128: 0 | L128: 0 | T128: STATIC
D129: 27.1.2.3.2 | E129: сверх социальной нормы потребления | F129: тыс.кВт*ч | G129: 2280 | H129: 0 | I129: 0 | J129: 0 | K129: 0 | L129: 0 | T129: STATIC
D130: 27.1.2.4 | E130: Садоводческим, огородническим или дачным некоммерческим объединениям граждан | F130: тыс.кВт*ч | G130: 2290 | H130: 0 | I130: 0 | J130: 0 | K130: 0 | L130: 0 | T130: STATIC
D131: 27.1.2.5 | E131: Религиозным организациям | F131: тыс.кВт*ч | G131: 2300 | H131: 0 | I131: 0 | J131: 0 | K131: 0 | L131: 0 | T131: STATIC
D132: 27.1.2.6 | E132: Юридическим лицам приобретающим электроэнергию в целях потребления на коммунально-бытовые нужды в населенных пунктах, жилых зонах при воинских частях и в целях потребления осужденными в помещениях для их содержания | F132: тыс.кВт*ч | G132: 2310 | H132: 649.288 | I132: 0 | J132: 0 | K132: 10.801 | L132: 638.487 | T132: STATIC
D133: 27.1.2.7 | E133: Некоммерческим объединениям граждан (гаражно-строительные, гаражные кооперативы) и хозяйственные постройки физических лиц | F133: тыс.кВт*ч | G133: 2320 | H133: 0 | I133: 0 | J133: 0 | K133: 0 | L133: 0 | T133: STATIC
D134: 27.2 | E134: по двухставочному тарифу (прочие потребители): | F134: тыс.кВт*ч | G134: 2330 | H134: 125.909 | I134: =I137 -> 3.721 | J134: =J137 -> 0 | K134: =K137 -> 25.085 | L134: =L137 -> 97.103 | T134: STATIC
D135: 27.2.1 | E135: мощность, в том числе: | F135: МВт | G135: 2340 | H135: 0.163 | I135: 0.006 | J135: 0 | K135: 0.035 | L135: 0.122 | T135: STATIC
D136: 27.2.1.1 | E136: опосредованно подключённым к шинам генераторов | F136: МВт | G136: 2350 | H136: 0 | I136: 0 | J136: 0 | K136: 0 | L136: 0 | T136: STATIC
D137: 27.2.2 | E137: компенсация потерь | F137: тыс.кВт*ч | G137: 2360 | H137: 125.909 | I137: 3.721 | J137: 0 | K137: 25.085 | L137: 97.103 | T137: STATIC
D138: 28 | E138: Оплачиваемый сетевыми организациями объём оказанных услуг по индивидуальному тарифу: | F138: тыс.кВт*ч | G138: 2370 | H138: 7373.163 | I138: =SUM(I139,I140) -> 7236.61 | J138: =SUM(J139,J140) -> 0 | K138: =SUM(K139,K140) -> 136.553 | L138: =SUM(L139,L140) -> 0 | T138: STATIC
D139: 28.1 | E139: по одноставочному тарифу | F139: тыс.кВт*ч | G139: 2380 | H139: 7373.163 | I139: 7236.61 | J139: 0 | K139: 136.553 | L139: 0 | T139: STATIC
D140: 28.2 | E140: по двухставочному тарифу: | F140: тыс.кВт*ч | G140: 2390 | H140: 0 | I140: =I142 -> 0 | J140: =J142 -> 0 | K140: =K142 -> 0 | L140: =L142 -> 0 | T140: STATIC
D141: 28.2.1 | E141: мощность | F141: МВт | G141: 2400 | H141: 0 | I141: 0 | J141: 0 | K141: 0 | L141: 0 | T141: STATIC
D142: 28.2.2 | E142: компенсация потерь | F142: тыс.кВт*ч | G142: 2410 | H142: 0 | I142: 0 | J142: 0 | K142: 0 | L142: 0 | T142: STATIC
D143: V. Стоимость услуг
D144: 29 | E144: Стоимость услуг, оплачиваемая потребителями (конечными потребителями по прямым договорам и ТСО): | F144: тыс.руб. | G144: 2420 | H144: =SUM(I144:L144) -> 0 | I144: =SUM(I145:I146) -> 0 | J144: =SUM(J145:J146) -> 0 | K144: =SUM(K145:K146) -> 0 | L144: =SUM(L145:L146) -> 0 | T144: STATIC
D145: 29.1 | E145: по одноставочному тарифу | F145: тыс.руб. | G145: 2430 | H145: 0 | I145: 0 | J145: 0 | K145: 0 | L145: 0 | T145: STATIC
D146: 29.2 | E146: по двухставочному тарифу: | F146: тыс.руб. | G146: 2440 | H146: 0 | I146: =SUM(I147,I149) -> 0 | J146: =SUM(J147,J149) -> 0 | K146: =SUM(K147,K149) -> 0 | L146: =SUM(L147,L149) -> 0 | T146: STATIC
D147: 29.2.1 | E147: мощность, в том числе: | F147: тыс.руб. | G147: 2450 | H147: 0 | I147: 0 | J147: 0 | K147: 0 | L147: 0 | T147: STATIC
D148: 29.2.1.1 | E148: опосредованно потребителям с шин генераторов | F148: тыс.руб. | G148: 2460 | H148: 0 | I148: 0 | J148: 0 | K148: 0 | L148: 0 | T148: STATIC
D149: 29.2.2 | E149: компенсация потерь | F149: тыс.руб. | G149: 2470 | H149: 0 | I149: 0 | J149: 0 | K149: 0 | L149: 0 | T149: STATIC
D150: 30 | E150: Стоимость услуг, оплачиваемая ГП, ЭСО: | F150: тыс.руб. | G150: 2480 | H150: 13319.536 | I150: =SUM(I151,I156) -> 840.977 | J150: =SUM(J151,J156) -> 0 | K150: =SUM(K151,K156) -> 8002.917 | L150: =SUM(L151,L156) -> 4475.642 | T150: STATIC
D151: 30.1 | E151: по одноставочному тарифу | F151: тыс.руб. | G151: 2490 | H151: 12988.099 | I151: =SUM(I152:I153) -> 831.062 | J151: =SUM(J152:J153) -> 0 | K151: =SUM(K152:K153) -> 7909.692 | L151: =SUM(L152:L153) -> 4247.345 | T151: STATIC
D152: 30.1.1 | E152: прочим потребителям | F152: тыс.руб. | G152: 2500 | H152: 12738.005 | I152: 831.062 | J152: 0 | K152: 7839.833 | L152: 4067.11 | T152: STATIC
D153: 30.1.2 | E153: населению и приравненным к нему категориям потребителей: | F153: тыс.руб. | G153: 2510 | H153: 250.094 | I153: =SUM(I154:I155) -> 0 | J153: =SUM(J154:J155) -> 0 | K153: =SUM(K154:K155) -> 69.859 | L153: =SUM(L154:L155) -> 180.235 | T153: STATIC
D154: 30.1.2.1 | E154: в пределах социальной нормы потребления | F154: тыс.руб. | G154: 2520 | H154: 250.094 | I154: 0 | J154: 0 | K154: 69.859 | L154: 180.235 | T154: STATIC
D155: 30.1.2.2 | E155: сверх социальной нормы потребления | F155: тыс.руб. | G155: 2530 | H155: 0 | I155: 0 | J155: 0 | K155: 0 | L155: 0 | T155: STATIC
D156: 30.2 | E156: по двухставочному тарифу (прочие потребители): | F156: тыс.руб. | G156: 2540 | H156: 331.437 | I156: =SUM(I157,I159) -> 9.915 | J156: =SUM(J157,J159) -> 0 | K156: =SUM(K157,K159) -> 93.225 | L156: =SUM(L157,L159) -> 228.297 | T156: STATIC
D157: 30.2.1 | E157: мощность, в том числе: | F157: тыс.руб. | G157: 2550 | H157: 263.188 | I157: 9.523 | J157: 0 | K157: 85.852 | L157: 167.813 | T157: STATIC
D158: 30.2.1.1 | E158: опосредованно потребителям с шин генераторов | F158: тыс.руб. | G158: 2560 | H158: 0 | I158: 0 | J158: 0 | K158: 0 | L158: 0 | T158: STATIC
D159: 30.2.2 | E159: компенсация потерь | F159: тыс.руб. | G159: 2570 | H159: 68.249 | I159: 0.392 | J159: 0 | K159: 7.373 | L159: 60.484 | T159: STATIC
D160: 31 | E160: Стоимость услуг, оплачиваемых сетевыми организациями по индивидуальному тарифу: | F160: тыс.руб. | G160: 2580 | H160: 1944.214 | I160: =SUM(I161:I162) -> 1908.207 | J160: =SUM(J161:J162) -> 0 | K160: =SUM(K161:K162) -> 36.007 | L160: =SUM(L161:L162) -> 0 | T160: STATIC
D161: 31.1 | E161: по одноставочному тарифу | F161: тыс.руб. | G161: 2590 | H161: 1944.214 | I161: 1908.207 | J161: 0 | K161: 36.007 | L161: 0 | T161: STATIC
D162: 31.2 | E162: по двухставочному тарифу: | F162: тыс.руб. | G162: 2600 | H162: 0 | I162: =SUM(I163:I164) -> 0 | J162: =SUM(J163:J164) -> 0 | K162: =SUM(K163:K164) -> 0 | L162: =SUM(L163:L164) -> 0 | T162: STATIC
D163: 31.2.1 | E163: мощность | F163: тыс.руб. | G163: 2610 | H163: 0 | I163: 0 | J163: 0 | K163: 0 | L163: 0 | T163: STATIC
D164: 31.2.2 | E164: компенсация потерь | F164: тыс.руб. | G164: 2620 | H164: 0 | I164: 0 | J164: 0 | K164: 0 | L164: 0 | T164: STATIC

Sheet TECHSHEET (hidden)
A1: Алтайский край | B1: RU22 | C1: Алтайский край | E1: YES_NO | G1: PERIOD | I1: Pospelova | J1: LOGIN | L1: MONTH_LIST | O1: YEAR_LIST
A2: Амурская область | B2: RU28 | C2: Амурская область | E2: Да | G2: =YEAR -> 2024 | I2: 2FF90388BE3E49C6E675DC955D62D6E5 | J2: PASSWORD | L2: Январь | M2: 1 | O2: 2022
A3: Архангельская область | B3: RU29 | C3: Архангельская область | E3: Нет | I3: MD5 | J3: ATH_SCHEME | L3: Февраль | M3: 2 | O3: 2023
A4: Астраханская область | B4: RU30 | C4: Астраханская область | G4: Организация | I4: YES | J4: RETAIN_PASSWORD | L4: Март | M4: 3 | O4: 2024
A5: Белгородская область | B5: RU31 | C5: Белгородская область | G5: ="01.01."&PERIOD -> 01.01.2024 | I5: YOgEFjopMwxdVAwUFJmpfHTTAkzxsWJqmkWzpGPTWvTglrAvoShhHUIYzfCxGxgz178i236i213i18, 194i226i26i82C04481B289A82E848E4FD7F3D5C6DE819dFEBd2407t56t03t918537000 | J5: SESSION_ID | L5: Апрель | M5: 4 | O5: 2025
A6: Брянская область | B6: RU32 | C6: Брянская область | E6: REPORT_TYPE_LIST | G6: ="31.12."&PERIOD -> 31.12.2024 | J6: OBFUSCATED_PASSWORD | L6: Май | M6: 5
A7: Владимирская область | B7: RU33 | C7: Владимирская область | E7: В целом по организации | L7: Июнь | M7: 6
A8: Волгоградская область | B8: RU34 | C8: Волгоградская область | E8: По обособленному подразделению | G8: Виды деятельности | L8: Июль | M8: 7
A9: Вологодская область | B9: RU35 | C9: Вологодская область | G9: ="01.01."&PERIOD -> 01.01.2024 | L9: Август | M9: 8
A10: Воронежская область | B10: RU36 | C10: Воронежская область | G10: ="31.12."&PERIOD -> 31.12.2024 | L10: Сентябрь | M10: 9
A11: г. Москва | B11: RU77 | C11: Москва | E11: TAX_SYSTEM_LIST | L11: Октябрь | M11: 10
A12: г. Байконур | B12: RU00 | E12: ОСН | G12: Территории | L12: Ноябрь | M12: 11
A13: г. Санкт-Петербург | B13: RU78 | C13: Cанкт-Петербург | E13: УСН | G13: ="01.01."&PERIOD -> 01.01.2024 | L13: Декабрь | M13: 12
A14: г. Севастополь | B14: RU92 | C14: Севастополь | E14: ПСН | G14: ="31.12."&PERIOD -> 31.12.2024 | L14: Год | M14: 13
A15: Донецкая Народная Республика | E15: ЕНВД
A16: Еврейская автономная область | B16: RU79 | C16: Еврейская автономная область | E16: ЕСХН | G16: JUSTIFICATION_SAMPLE_URL
A17: Забайкальский край | B17: RU75 | C17: Забайкальский край | E17: налогообложение казённых учреждений | G17: https://eias.ru/files/46ep.stx.eias.justification.rtf
A18: Запорожская область
A19: Ивановская область | B19: RU37 | C19: Ивановская область | G19: IMPORT_DATA_DESCRIPTION_URL
A20: Иркутская область | B20: RU38 | C20: Иркутская область | G20: https://sp.eias.ru/knowledgebase.php?article=125
A21: Кабардино-Балкарская республика | B21: RU07 | C21: Республика Кабардино-Балкария
A22: Калининградская область | B22: RU39 | C22: Калининградская область
A23: Калужская область | B23: RU40 | C23: Калужская область
A24: Камчатский край | B24: RU41 | C24: Камчатский край
A25: Карачаево-Черкесская республика | B25: RU09 | C25: Республика Карачаево-Черкессия
A26: Кемеровская область | B26: RU42 | C26: Кемеровская область
A27: Кировская область | B27: RU43 | C27: Кировская область
A28: Костромская область | B28: RU44 | C28: Костромская область
A29: Краснодарский край | B29: RU23 | C29: Краснодарский край
A30: Красноярский край | B30: RU24 | C30: Красноярский край
A31: Курганская область | B31: RU45 | C31: Курганская область
A32: Курская область | B32: RU46 | C32: Курская область
A33: Ленинградская область | B33: RU47 | C33: Ленинградская область
A34: Липецкая область | B34: RU48 | C34: Липецкая область
A35: Луганская Народная Республика
A36: Магаданская область | B36: RU49 | C36: Магаданская область
A37: Московская область | B37: RU50 | C37: Московская область
A38: Мурманская область | B38: RU51 | C38: Мурманская область
A39: Ненецкий автономный округ | B39: RU83 | C39: Ненецкий автономный округ
A40: Нижегородская область | B40: RU52 | C40: Нижегородская область
A41: Новгородская область | B41: RU53 | C41: Новгородская область
A42: Новосибирская область | B42: RU54 | C42: Новосибирская область
A43: Омская область | B43: RU55 | C43: Омская область
A44: Оренбургская область | B44: RU56 | C44: Оренбургская область
A45: Орловская область | B45: RU57 | C45: Орловская область
A46: Пензенская область | B46: RU58 | C46: Пензенская область
A47: Пермский край | B47: RU59 | C47: Пермский край
A48: Приморский край | B48: RU25 | C48: Приморский край
A49: Псковская область | B49: RU60 | C49: Псковская область
A50: Республика Адыгея | B50: RU01 | C50: Республика Адыгея
A51: Республика Алтай | B51: RU04 | C51: Республика Алтай
A52: Республика Башкортостан | B52: RU02 | C52: Республика Башкортостан
A53: Республика Бурятия | B53: RU03 | C53: Республика Бурятия
A54: Республика Дагестан | B54: RU05 | C54: Республика Дагестан
A55: Республика Ингушетия | B55: RU06 | C55: Республика Ингушетия
A56: Республика Калмыкия | B56: RU08 | C56: Республика Калмыкия
A57: Республика Карелия | B57: RU10 | C57: Республика Карелия
A58: Республика Коми | B58: RU11 | C58: Республика Коми
A59: Республика Крым | B59: RU82 | C59: Крым
A60: Республика Марий Эл | B60: RU12 | C60: Республика Марий Эл
A61: Республика Мордовия | B61: RU13 | C61: Республика Мордовия
A62: Республика Саха (Якутия) | B62: RU14 | C62: Республика Саха (Якутия)
A63: Республика Северная Осетия-Алания | B63: RU15 | C63: Республика Северная Осетия (Алания)
A64: Республика Татарстан | B64: RU16 | C64: Республика Татарстан
A65: Республика Тыва | B65: RU17 | C65: Республика Тыва (Тува)
A66: Республика Хакасия | B66: RU19 | C66: Республика Хакасия
A67: Ростовская область | B67: RU61 | C67: Ростовская область
A68: Рязанская область | B68: RU62 | C68: Рязанская область
A69: Самарская область | B69: RU63 | C69: Самарская область
A70: Саратовская область | B70: RU64 | C70: Саратовская область
A71: Сахалинская область | B71: RU65 | C71: Сахалинская область
A72: Свердловская область | B72: RU66 | C72: Свердловская область
A73: Смоленская область | B73: RU67 | C73: Смоленская область
A74: Ставропольский край | B74: RU26 | C74: Ставропольский край
A75: Тамбовская область | B75: RU68 | C75: Тамбовская область
A76: Тверская область | B76: RU69 | C76: Тверская область
A77: Томская область | B77: RU70 | C77: Томская область
A78: Тульская область | B78: RU71 | C78: Тульская область
A79: Тюменская область | B79: RU72 | C79: Тюменская область
A80: Удмуртская республика | B80: RU18 | C80: Республика Удмуртия
A81: Ульяновская область | B81: RU73 | C81: Ульяновская область
A82: Хабаровский край | B82: RU27 | C82: Хабаровский край
A83: Ханты-Мансийский автономный округ | B83: RU86 | C83: Ханты-Мансийский автономный округ
A84: Херсонская область
A85: Челябинская область | B85: RU74 | C85: Челябинская область
A86: Чеченская республика | B86: RU20 | C86: Республика Чечня
A87: Чувашская республика | B87: RU21 | C87: Республика Чувашия
A88: Чукотский автономный округ | B88: RU87 | C88: Чукотский автономный округ
A89: Ямало-Ненецкий автономный округ | B89: RU89 | C89: Ямало-Ненецкий автономный округ
A90: Ярославская область | B90: RU76 | C90: Ярославская область
A458: ="HTP.P('<"&#REF!&">' || "&IF(MID(#REF!,1,4)="STUB","NULL","REC."&#REF!)&" || '</"&#REF!&">');" ->  | C458: ="DECODE(C_T."&#REF!&", 0, NULL, C_T."&#REF!&") AS "&#REF!&"," -> 
A459: ="HTP.P('<"&#REF!&">' || "&IF(MID(#REF!,1,4)="STUB","NULL","REC."&#REF!)&" || '</"&#REF!&">');" ->  | C459: ="DECODE(C_T."&#REF!&", 0, NULL, C_T."&#REF!&") AS "&#REF!&"," -> 
A460: ="HTP.P('<"&#REF!&">' || "&IF(MID(#REF!,1,4)="STUB","NULL","REC."&#REF!)&" || '</"&#REF!&">');" ->  | C460: ="DECODE(C_T."&#REF!&", 0, NULL, C_T."&#REF!&") AS "&#REF!&"," -> 
A461: ="HTP.P('<"&#REF!&">' || "&IF(MID(#REF!,1,4)="STUB","NULL","REC."&#REF!)&" || '</"&#REF!&">');" ->  | C461: ="DECODE(C_T."&#REF!&", 0, NULL, C_T."&#REF!&") AS "&#REF!&"," -> 
A462: ="HTP.P('<"&#REF!&">' || "&IF(MID(#REF!,1,4)="STUB","NULL","REC."&#REF!)&" || '</"&#REF!&">');" ->  | C462: ="DECODE(C_T."&#REF!&", 0, NULL, C_T."&#REF!&") AS "&#REF!&"," -> 
A463: ="HTP.P('<"&#REF!&">' || "&IF(MID(#REF!,1,4)="STUB","NULL","REC."&#REF!)&" || '</"&#REF!&">');" ->  | C463: ="DECODE(C_T."&#REF!&", 0, NULL, C_T."&#REF!&") AS "&#REF!&"," -> 
A464: ="HTP.P('<"&#REF!&">' || "&IF(MID(#REF!,1,4)="STUB","NULL","REC."&#REF!)&" || '</"&#REF!&">');" ->  | C464: ="DECODE(C_T."&#REF!&", 0, NULL, C_T."&#REF!&") AS "&#REF!&"," -> 
A465: ="HTP.P('<"&#REF!&">' || "&IF(MID(#REF!,1,4)="STUB","NULL","REC."&#REF!)&" || '</"&#REF!&">');" ->  | C465: ="DECODE(C_T."&#REF!&", 0, NULL, C_T."&#REF!&") AS "&#REF!&"," -> 
A466: ="HTP.P('<"&#REF!&">' || "&IF(MID(#REF!,1,4)="STUB","NULL","REC."&#REF!)&" || '</"&#REF!&">');" ->  | C466: ="DECODE(C_T."&#REF!&", 0, NULL, C_T."&#REF!&") AS "&#REF!&"," -> 
A467: ="HTP.P('<"&#REF!&">' || "&IF(MID(#REF!,1,4)="STUB","NULL","REC."&#REF!)&" || '</"&#REF!&">');" ->  | C467: ="DECODE(C_T."&#REF!&", 0, NULL, C_T."&#REF!&") AS "&#REF!&"," -> 
A468: ="HTP.P('<"&#REF!&">' || "&IF(MID(#REF!,1,4)="STUB","NULL","REC."&#REF!)&" || '</"&#REF!&">');" ->  | C468: ="DECODE(C_T."&#REF!&", 0, NULL, C_T."&#REF!&") AS "&#REF!&"," -> 
A469: ="HTP.P('<"&#REF!&">' || "&IF(MID(#REF!,1,4)="STUB","NULL","REC."&#REF!)&" || '</"&#REF!&">');" ->  | C469: ="DECODE(C_T."&#REF!&", 0, NULL, C_T."&#REF!&") AS "&#REF!&"," -> 
A470: ="HTP.P('<"&#REF!&">' || "&IF(MID(#REF!,1,4)="STUB","NULL","REC."&#REF!)&" || '</"&#REF!&">');" ->  | C470: ="DECODE(C_T."&#REF!&", 0, NULL, C_T."&#REF!&") AS "&#REF!&"," -> 
A471: ="HTP.P('<"&#REF!&">' || "&IF(MID(#REF!,1,4)="STUB","NULL","REC."&#REF!)&" || '</"&#REF!&">');" ->  | C471: ="DECODE(C_T."&#REF!&", 0, NULL, C_T."&#REF!&") AS "&#REF!&"," -> 
A472: ="HTP.P('<"&#REF!&">' || "&IF(MID(#REF!,1,4)="STUB","NULL","REC."&#REF!)&" || '</"&#REF!&">');" ->  | C472: ="DECODE(C_T."&#REF!&", 0, NULL, C_T."&#REF!&") AS "&#REF!&"," -> 
A473: ="HTP.P('<"&G399&">' || "&IF(MID(G399,1,4)="STUB","NULL","REC."&G399)&" || '</"&G399&">');" -> HTP.P('<>' || REC. || '</>'); | C473: ="DECODE(C_T."&G399&", 0, NULL, C_T."&G399&") AS "&G399&"," -> DECODE(C_T., 0, NULL, C_T.) AS ,
A474: ="HTP.P('<"&#REF!&">' || "&IF(MID(#REF!,1,4)="STUB","NULL","REC."&#REF!)&" || '</"&#REF!&">');" ->  | C474: ="DECODE(C_T."&#REF!&", 0, NULL, C_T."&#REF!&") AS "&#REF!&"," -> 
A475: ="HTP.P('<"&#REF!&">' || "&IF(MID(#REF!,1,4)="STUB","NULL","REC."&#REF!)&" || '</"&#REF!&">');" ->  | C475: ="DECODE(C_T."&#REF!&", 0, NULL, C_T."&#REF!&") AS "&#REF!&"," -> 
A476: ="HTP.P('<"&#REF!&">' || "&IF(MID(#REF!,1,4)="STUB","NULL","REC."&#REF!)&" || '</"&#REF!&">');" ->  | C476: ="DECODE(C_T."&#REF!&", 0, NULL, C_T."&#REF!&") AS "&#REF!&"," -> 
A477: ="HTP.P('<"&#REF!&">' || "&IF(MID(#REF!,1,4)="STUB","NULL","REC."&#REF!)&" || '</"&#REF!&">');" ->  | C477: ="DECODE(C_T."&#REF!&", 0, NULL, C_T."&#REF!&") AS "&#REF!&"," -> 
A478: ="HTP.P('<"&#REF!&">' || "&IF(MID(#REF!,1,4)="STUB","NULL","REC."&#REF!)&" || '</"&#REF!&">');" ->  | C478: ="DECODE(C_T."&#REF!&", 0, NULL, C_T."&#REF!&") AS "&#REF!&"," -> 
A479: ="HTP.P('<"&#REF!&">' || "&IF(MID(#REF!,1,4)="STUB","NULL","REC."&#REF!)&" || '</"&#REF!&">');" ->  | C479: ="DECODE(C_T."&#REF!&", 0, NULL, C_T."&#REF!&") AS "&#REF!&"," -> 
A480: ="HTP.P('<"&#REF!&">' || "&IF(MID(#REF!,1,4)="STUB","NULL","REC."&#REF!)&" || '</"&#REF!&">');" ->  | C480: ="DECODE(C_T."&#REF!&", 0, NULL, C_T."&#REF!&") AS "&#REF!&"," -> 
A481: ="HTP.P('<"&#REF!&">' || "&IF(MID(#REF!,1,4)="STUB","NULL","REC."&#REF!)&" || '</"&#REF!&">');" ->  | C481: ="DECODE(C_T."&#REF!&", 0, NULL, C_T."&#REF!&") AS "&#REF!&"," -> 
A482: ="HTP.P('<"&#REF!&">' || "&IF(MID(#REF!,1,4)="STUB","NULL","REC."&#REF!)&" || '</"&#REF!&">');" ->  | C482: ="DECODE(C_T."&#REF!&", 0, NULL, C_T."&#REF!&") AS "&#REF!&"," -> 
A483: ="HTP.P('<"&#REF!&">' || "&IF(MID(#REF!,1,4)="STUB","NULL","REC."&#REF!)&" || '</"&#REF!&">');" ->  | C483: ="DECODE(C_T."&#REF!&", 0, NULL, C_T."&#REF!&") AS "&#REF!&"," -> 
A484: ="HTP.P('<"&#REF!&">' || "&IF(MID(#REF!,1,4)="STUB","NULL","REC."&#REF!)&" || '</"&#REF!&">');" ->  | C484: ="DECODE(C_T."&#REF!&", 0, NULL, C_T."&#REF!&") AS "&#REF!&"," -> 
A485: ="HTP.P('<"&#REF!&">' || "&IF(MID(#REF!,1,4)="STUB","NULL","REC."&#REF!)&" || '</"&#REF!&">');" ->  | C485: ="DECODE(C_T."&#REF!&", 0, NULL, C_T."&#REF!&") AS "&#REF!&"," -> 
A486: ="HTP.P('<"&#REF!&">' || "&IF(MID(#REF!,1,4)="STUB","NULL","REC."&#REF!)&" || '</"&#REF!&">');" ->  | C486: ="DECODE(C_T."&#REF!&", 0, NULL, C_T."&#REF!&") AS "&#REF!&"," -> 
A487: ="HTP.P('<"&#REF!&">' || "&IF(MID(#REF!,1,4)="STUB","NULL","REC."&#REF!)&" || '</"&#REF!&">');" ->  | C487: ="DECODE(C_T."&#REF!&", 0, NULL, C_T."&#REF!&") AS "&#REF!&"," -> 
A488: ="HTP.P('<"&#REF!&">' || "&IF(MID(#REF!,1,4)="STUB","NULL","REC."&#REF!)&" || '</"&#REF!&">');" ->  | C488: ="DECODE(C_T."&#REF!&", 0, NULL, C_T."&#REF!&") AS "&#REF!&"," -> 
A489: ="HTP.P('<"&#REF!&">' || "&IF(MID(#REF!,1,4)="STUB","NULL","REC."&#REF!)&" || '</"&#REF!&">');" ->  | C489: ="DECODE(C_T."&#REF!&", 0, NULL, C_T."&#REF!&") AS "&#REF!&"," -> 
A490: ="HTP.P('<"&#REF!&">' || "&IF(MID(#REF!,1,4)="STUB","NULL","REC."&#REF!)&" || '</"&#REF!&">');" ->  | C490: ="DECODE(C_T."&#REF!&", 0, NULL, C_T."&#REF!&") AS "&#REF!&"," -> 
A491: ="HTP.P('<"&#REF!&">' || "&IF(MID(#REF!,1,4)="STUB","NULL","REC."&#REF!)&" || '</"&#REF!&">');" ->  | C491: ="DECODE(C_T."&#REF!&", 0, NULL, C_T."&#REF!&") AS "&#REF!&"," -> 
A492: ="HTP.P('<"&#REF!&">' || "&IF(MID(#REF!,1,4)="STUB","NULL","REC."&#REF!)&" || '</"&#REF!&">');" ->  | C492: ="DECODE(C_T."&#REF!&", 0, NULL, C_T."&#REF!&") AS "&#REF!&"," -> 
A493: ="HTP.P('<"&#REF!&">' || "&IF(MID(#REF!,1,4)="STUB","NULL","REC."&#REF!)&" || '</"&#REF!&">');" ->  | C493: ="DECODE(C_T."&#REF!&", 0, NULL, C_T."&#REF!&") AS "&#REF!&"," -> 
A494: ="HTP.P('<"&#REF!&">' || "&IF(MID(#REF!,1,4)="STUB","NULL","REC."&#REF!)&" || '</"&#REF!&">');" ->  | C494: ="DECODE(C_T."&#REF!&", 0, NULL, C_T."&#REF!&") AS "&#REF!&"," -> 
A495: ="HTP.P('<"&#REF!&">' || "&IF(MID(#REF!,1,4)="STUB","NULL","REC."&#REF!)&" || '</"&#REF!&">');" ->  | C495: ="DECODE(C_T."&#REF!&", 0, NULL, C_T."&#REF!&") AS "&#REF!&"," -> 
A496: ="HTP.P('<"&#REF!&">' || "&IF(MID(#REF!,1,4)="STUB","NULL","REC."&#REF!)&" || '</"&#REF!&">');" ->  | C496: ="DECODE(C_T."&#REF!&", 0, NULL, C_T."&#REF!&") AS "&#REF!&"," -> 
A497: ="HTP.P('<"&#REF!&">' || "&IF(MID(#REF!,1,4)="STUB","NULL","REC."&#REF!)&" || '</"&#REF!&">');" ->  | C497: ="DECODE(C_T."&#REF!&", 0, NULL, C_T."&#REF!&") AS "&#REF!&"," -> 
A498: ="HTP.P('<"&#REF!&">' || "&IF(MID(#REF!,1,4)="STUB","NULL","REC."&#REF!)&" || '</"&#REF!&">');" ->  | C498: ="DECODE(C_T."&#REF!&", 0, NULL, C_T."&#REF!&") AS "&#REF!&"," -> 
A499: ="HTP.P('<"&#REF!&">' || "&IF(MID(#REF!,1,4)="STUB","NULL","REC."&#REF!)&" || '</"&#REF!&">');" ->  | C499: ="DECODE(C_T."&#REF!&", 0, NULL, C_T."&#REF!&") AS "&#REF!&"," -> 
A500: ="HTP.P('<"&#REF!&">' || "&IF(MID(#REF!,1,4)="STUB","NULL","REC."&#REF!)&" || '</"&#REF!&">');" ->  | C500: ="DECODE(C_T."&#REF!&", 0, NULL, C_T."&#REF!&") AS "&#REF!&"," -> 
A501: ="HTP.P('<"&#REF!&">' || "&IF(MID(#REF!,1,4)="STUB","NULL","REC."&#REF!)&" || '</"&#REF!&">');" ->  | C501: ="DECODE(C_T."&#REF!&", 0, NULL, C_T."&#REF!&") AS "&#REF!&"," -> 
A502: ="HTP.P('<"&#REF!&">' || "&IF(MID(#REF!,1,4)="STUB","NULL","REC."&#REF!)&" || '</"&#REF!&">');" ->  | C502: ="DECODE(C_T."&#REF!&", 0, NULL, C_T."&#REF!&") AS "&#REF!&"," -> 
A503: ="HTP.P('<"&#REF!&">' || "&IF(MID(#REF!,1,4)="STUB","NULL","REC."&#REF!)&" || '</"&#REF!&">');" ->  | C503: ="DECODE(C_T."&#REF!&", 0, NULL, C_T."&#REF!&") AS "&#REF!&"," -> 
A504: ="HTP.P('<"&#REF!&">' || "&IF(MID(#REF!,1,4)="STUB","NULL","REC."&#REF!)&" || '</"&#REF!&">');" ->  | C504: ="DECODE(C_T."&#REF!&", 0, NULL, C_T."&#REF!&") AS "&#REF!&"," -> 
A505: ="HTP.P('<"&#REF!&">' || "&IF(MID(#REF!,1,4)="STUB","NULL","REC."&#REF!)&" || '</"&#REF!&">');" ->  | C505: ="DECODE(C_T."&#REF!&", 0, NULL, C_T."&#REF!&") AS "&#REF!&"," -> 
A506: ="HTP.P('<"&#REF!&">' || "&IF(MID(#REF!,1,4)="STUB","NULL","REC."&#REF!)&" || '</"&#REF!&">');" ->  | C506: ="DECODE(C_T."&#REF!&", 0, NULL, C_T."&#REF!&") AS "&#REF!&"," -> 
A507: ="HTP.P('<"&#REF!&">' || "&IF(MID(#REF!,1,4)="STUB","NULL","REC."&#REF!)&" || '</"&#REF!&">');" ->  | C507: ="DECODE(C_T."&#REF!&", 0, NULL, C_T."&#REF!&") AS "&#REF!&"," -> 
A508: ="HTP.P('<"&#REF!&">' || "&IF(MID(#REF!,1,4)="STUB","NULL","REC."&#REF!)&" || '</"&#REF!&">');" ->  | C508: ="DECODE(C_T."&#REF!&", 0, NULL, C_T."&#REF!&") AS "&#REF!&"," -> 
A509: ="HTP.P('<"&#REF!&">' || "&IF(MID(#REF!,1,4)="STUB","NULL","REC."&#REF!)&" || '</"&#REF!&">');" ->  | C509: ="DECODE(C_T."&#REF!&", 0, NULL, C_T."&#REF!&") AS "&#REF!&"," -> 
A510: ="HTP.P('<"&#REF!&">' || "&IF(MID(#REF!,1,4)="STUB","NULL","REC."&#REF!)&" || '</"&#REF!&">');" ->  | C510: ="DECODE(C_T."&#REF!&", 0, NULL, C_T."&#REF!&") AS "&#REF!&"," -> 
A511: ="HTP.P('<"&#REF!&">' || "&IF(MID(#REF!,1,4)="STUB","NULL","REC."&#REF!)&" || '</"&#REF!&">');" ->  | C511: ="DECODE(C_T."&#REF!&", 0, NULL, C_T."&#REF!&") AS "&#REF!&"," -> 
A512: ="HTP.P('<"&#REF!&">' || "&IF(MID(#REF!,1,4)="STUB","NULL","REC."&#REF!)&" || '</"&#REF!&">');" ->  | C512: ="DECODE(C_T."&#REF!&", 0, NULL, C_T."&#REF!&") AS "&#REF!&"," -> 
A513: ="HTP.P('<"&#REF!&">' || "&IF(MID(#REF!,1,4)="STUB","NULL","REC."&#REF!)&" || '</"&#REF!&">');" ->  | C513: ="DECODE(C_T."&#REF!&", 0, NULL, C_T."&#REF!&") AS "&#REF!&"," -> 
A514: ="HTP.P('<"&#REF!&">' || "&IF(MID(#REF!,1,4)="STUB","NULL","REC."&#REF!)&" || '</"&#REF!&">');" ->  | C514: ="DECODE(C_T."&#REF!&", 0, NULL, C_T."&#REF!&") AS "&#REF!&"," -> 
A515: ="HTP.P('<"&#REF!&">' || "&IF(MID(#REF!,1,4)="STUB","NULL","REC."&#REF!)&" || '</"&#REF!&">');" ->  | C515: ="DECODE(C_T."&#REF!&", 0, NULL, C_T."&#REF!&") AS "&#REF!&"," -> 
A516: ="HTP.P('<"&#REF!&">' || "&IF(MID(#REF!,1,4)="STUB","NULL","REC."&#REF!)&" || '</"&#REF!&">');" ->  | C516: ="DECODE(C_T."&#REF!&", 0, NULL, C_T."&#REF!&") AS "&#REF!&"," -> 
A517: ="HTP.P('<"&#REF!&">' || "&IF(MID(#REF!,1,4)="STUB","NULL","REC."&#REF!)&" || '</"&#REF!&">');" ->  | C517: ="DECODE(C_T."&#REF!&", 0, NULL, C_T."&#REF!&") AS "&#REF!&"," -> 
A518: ="HTP.P('<"&#REF!&">' || "&IF(MID(#REF!,1,4)="STUB","NULL","REC."&#REF!)&" || '</"&#REF!&">');" ->  | C518: ="DECODE(C_T."&#REF!&", 0, NULL, C_T."&#REF!&") AS "&#REF!&"," -> 
A519: ="HTP.P('<"&#REF!&">' || "&IF(MID(#REF!,1,4)="STUB","NULL","REC."&#REF!)&" || '</"&#REF!&">');" ->  | C519: ="DECODE(C_T."&#REF!&", 0, NULL, C_T."&#REF!&") AS "&#REF!&"," -> 
A520: ="HTP.P('<"&#REF!&">' || "&IF(MID(#REF!,1,4)="STUB","NULL","REC."&#REF!)&" || '</"&#REF!&">');" ->  | C520: ="DECODE(C_T."&#REF!&", 0, NULL, C_T."&#REF!&") AS "&#REF!&"," -> 
A521: ="HTP.P('<"&#REF!&">' || "&IF(MID(#REF!,1,4)="STUB","NULL","REC."&#REF!)&" || '</"&#REF!&">');" ->  | C521: ="DECODE(C_T."&#REF!&", 0, NULL, C_T."&#REF!&") AS "&#REF!&"," -> 
A522: ="HTP.P('<"&#REF!&">' || "&IF(MID(#REF!,1,4)="STUB","NULL","REC."&#REF!)&" || '</"&#REF!&">');" ->  | C522: ="DECODE(C_T."&#REF!&", 0, NULL, C_T."&#REF!&") AS "&#REF!&"," -> 
A523: ="HTP.P('<"&#REF!&">' || "&IF(MID(#REF!,1,4)="STUB","NULL","REC."&#REF!)&" || '</"&#REF!&">');" ->  | C523: ="DECODE(C_T."&#REF!&", 0, NULL, C_T."&#REF!&") AS "&#REF!&"," -> 
A524: ="HTP.P('<"&#REF!&">' || "&IF(MID(#REF!,1,4)="STUB","NULL","REC."&#REF!)&" || '</"&#REF!&">');" ->  | C524: ="DECODE(C_T."&#REF!&", 0, NULL, C_T."&#REF!&") AS "&#REF!&"," -> 
A525: ="HTP.P('<"&#REF!&">' || "&IF(MID(#REF!,1,4)="STUB","NULL","REC."&#REF!)&" || '</"&#REF!&">');" ->  | C525: ="DECODE(C_T."&#REF!&", 0, NULL, C_T."&#REF!&") AS "&#REF!&"," -> 
A526: ="HTP.P('<"&#REF!&">' || "&IF(MID(#REF!,1,4)="STUB","NULL","REC."&#REF!)&" || '</"&#REF!&">');" ->  | C526: ="DECODE(C_T."&#REF!&", 0, NULL, C_T."&#REF!&") AS "&#REF!&"," -> 
A527: ="HTP.P('<"&#REF!&">' || "&IF(MID(#REF!,1,4)="STUB","NULL","REC."&#REF!)&" || '</"&#REF!&">');" ->  | C527: ="DECODE(C_T."&#REF!&", 0, NULL, C_T."&#REF!&") AS "&#REF!&"," -> 
A528: ="HTP.P('<"&#REF!&">' || "&IF(MID(#REF!,1,4)="STUB","NULL","REC."&#REF!)&" || '</"&#REF!&">');" ->  | C528: ="DECODE(C_T."&#REF!&", 0, NULL, C_T."&#REF!&") AS "&#REF!&"," -> 
A529: ="HTP.P('<"&#REF!&">' || "&IF(MID(#REF!,1,4)="STUB","NULL","REC."&#REF!)&" || '</"&#REF!&">');" ->  | C529: ="DECODE(C_T."&#REF!&", 0, NULL, C_T."&#REF!&") AS "&#REF!&"," -> 
A530: ="HTP.P('<"&#REF!&">' || "&IF(MID(#REF!,1,4)="STUB","NULL","REC."&#REF!)&" || '</"&#REF!&">');" ->  | C530: ="DECODE(C_T."&#REF!&", 0, NULL, C_T."&#REF!&") AS "&#REF!&"," -> 
A531: ="HTP.P('<"&#REF!&">' || "&IF(MID(#REF!,1,4)="STUB","NULL","REC."&#REF!)&" || '</"&#REF!&">');" ->  | C531: ="DECODE(C_T."&#REF!&", 0, NULL, C_T."&#REF!&") AS "&#REF!&"," -> 
A532: ="HTP.P('<"&#REF!&">' || "&IF(MID(#REF!,1,4)="STUB","NULL","REC."&#REF!)&" || '</"&#REF!&">');" ->  | C532: ="DECODE(C_T."&#REF!&", 0, NULL, C_T."&#REF!&") AS "&#REF!&"," -> 
A533: ="HTP.P('<"&#REF!&">' || "&IF(MID(#REF!,1,4)="STUB","NULL","REC."&#REF!)&" || '</"&#REF!&">');" ->  | C533: ="DECODE(C_T."&#REF!&", 0, NULL, C_T."&#REF!&") AS "&#REF!&"," -> 
A534: ="HTP.P('<"&#REF!&">' || "&IF(MID(#REF!,1,4)="STUB","NULL","REC."&#REF!)&" || '</"&#REF!&">');" ->  | C534: ="DECODE(C_T."&#REF!&", 0, NULL, C_T."&#REF!&") AS "&#REF!&"," -> 
A535: ="HTP.P('<"&#REF!&">' || "&IF(MID(#REF!,1,4)="STUB","NULL","REC."&#REF!)&" || '</"&#REF!&">');" ->  | C535: ="DECODE(C_T."&#REF!&", 0, NULL, C_T."&#REF!&") AS "&#REF!&"," -> 
A536: ="HTP.P('<"&#REF!&">' || "&IF(MID(#REF!,1,4)="STUB","NULL","REC."&#REF!)&" || '</"&#REF!&">');" ->  | C536: ="DECODE(C_T."&#REF!&", 0, NULL, C_T."&#REF!&") AS "&#REF!&"," -> 
A537: ="HTP.P('<"&#REF!&">' || "&IF(MID(#REF!,1,4)="STUB","NULL","REC."&#REF!)&" || '</"&#REF!&">');" ->  | C537: ="DECODE(C_T."&#REF!&", 0, NULL, C_T."&#REF!&") AS "&#REF!&"," -> 
A538: ="HTP.P('<"&#REF!&">' || "&IF(MID(#REF!,1,4)="STUB","NULL","REC."&#REF!)&" || '</"&#REF!&">');" ->  | C538: ="DECODE(C_T."&#REF!&", 0, NULL, C_T."&#REF!&") AS "&#REF!&"," -> 
A539: ="HTP.P('<"&#REF!&">' || "&IF(MID(#REF!,1,4)="STUB","NULL","REC."&#REF!)&" || '</"&#REF!&">');" ->  | C539: ="DECODE(C_T."&#REF!&", 0, NULL, C_T."&#REF!&") AS "&#REF!&"," -> 
A540: ="HTP.P('<"&#REF!&">' || "&IF(MID(#REF!,1,4)="STUB","NULL","REC."&#REF!)&" || '</"&#REF!&">');" ->  | C540: ="DECODE(C_T."&#REF!&", 0, NULL, C_T."&#REF!&") AS "&#REF!&"," -> 
A541: ="HTP.P('<"&#REF!&">' || "&IF(MID(#REF!,1,4)="STUB","NULL","REC."&#REF!)&" || '</"&#REF!&">');" ->  | C541: ="DECODE(C_T."&#REF!&", 0, NULL, C_T."&#REF!&") AS "&#REF!&"," -> 
A542: ="HTP.P('<"&#REF!&">' || "&IF(MID(#REF!,1,4)="STUB","NULL","REC."&#REF!)&" || '</"&#REF!&">');" ->  | C542: ="DECODE(C_T."&#REF!&", 0, NULL, C_T."&#REF!&") AS "&#REF!&"," -> 
A543: ="HTP.P('<"&#REF!&">' || "&IF(MID(#REF!,1,4)="STUB","NULL","REC."&#REF!)&" || '</"&#REF!&">');" ->  | C543: ="DECODE(C_T."&#REF!&", 0, NULL, C_T."&#REF!&") AS "&#REF!&"," -> 
A544: ="HTP.P('<"&#REF!&">' || "&IF(MID(#REF!,1,4)="STUB","NULL","REC."&#REF!)&" || '</"&#REF!&">');" ->  | C544: ="DECODE(C_T."&#REF!&", 0, NULL, C_T."&#REF!&") AS "&#REF!&"," -> 
A545: ="HTP.P('<"&#REF!&">' || "&IF(MID(#REF!,1,4)="STUB","NULL","REC."&#REF!)&" || '</"&#REF!&">');" ->  | C545: ="DECODE(C_T."&#REF!&", 0, NULL, C_T."&#REF!&") AS "&#REF!&"," -> 
A546: ="HTP.P('<"&#REF!&">' || "&IF(MID(#REF!,1,4)="STUB","NULL","REC."&#REF!)&" || '</"&#REF!&">');" ->  | C546: ="DECODE(C_T."&#REF!&", 0, NULL, C_T."&#REF!&") AS "&#REF!&"," -> 
A547: ="HTP.P('<"&#REF!&">' || "&IF(MID(#REF!,1,4)="STUB","NULL","REC."&#REF!)&" || '</"&#REF!&">');" ->  | C547: ="DECODE(C_T."&#REF!&", 0, NULL, C_T."&#REF!&") AS "&#REF!&"," -> 
A548: ="HTP.P('<"&#REF!&">' || "&IF(MID(#REF!,1,4)="STUB","NULL","REC."&#REF!)&" || '</"&#REF!&">');" ->  | C548: ="DECODE(C_T."&#REF!&", 0, NULL, C_T."&#REF!&") AS "&#REF!&"," -> 
A549: ="HTP.P('<"&#REF!&">' || "&IF(MID(#REF!,1,4)="STUB","NULL","REC."&#REF!)&" || '</"&#REF!&">');" ->  | C549: ="DECODE(C_T."&#REF!&", 0, NULL, C_T."&#REF!&") AS "&#REF!&"," -> 
A550: ="HTP.P('<"&#REF!&">' || "&IF(MID(#REF!,1,4)="STUB","NULL","REC."&#REF!)&" || '</"&#REF!&">');" ->  | C550: ="DECODE(C_T."&#REF!&", 0, NULL, C_T."&#REF!&") AS "&#REF!&"," -> 
A551: ="HTP.P('<"&#REF!&">' || "&IF(MID(#REF!,1,4)="STUB","NULL","REC."&#REF!)&" || '</"&#REF!&">');" ->  | C551: ="DECODE(C_T."&#REF!&", 0, NULL, C_T."&#REF!&") AS "&#REF!&"," -> 
A552: ="HTP.P('<"&#REF!&">' || "&IF(MID(#REF!,1,4)="STUB","NULL","REC."&#REF!)&" || '</"&#REF!&">');" ->  | C552: ="DECODE(C_T."&#REF!&", 0, NULL, C_T."&#REF!&") AS "&#REF!&"," -> 
A553: ="HTP.P('<"&#REF!&">' || "&IF(MID(#REF!,1,4)="STUB","NULL","REC."&#REF!)&" || '</"&#REF!&">');" ->  | C553: ="DECODE(C_T."&#REF!&", 0, NULL, C_T."&#REF!&") AS "&#REF!&"," -> 
A554: ="HTP.P('<"&#REF!&">' || "&IF(MID(#REF!,1,4)="STUB","NULL","REC."&#REF!)&" || '</"&#REF!&">');" ->  | C554: ="DECODE(C_T."&#REF!&", 0, NULL, C_T."&#REF!&") AS "&#REF!&"," -> 
A555: ="HTP.P('<"&#REF!&">' || "&IF(MID(#REF!,1,4)="STUB","NULL","REC."&#REF!)&" || '</"&#REF!&">');" ->  | C555: ="DECODE(C_T."&#REF!&", 0, NULL, C_T."&#REF!&") AS "&#REF!&"," -> 
A556: ="HTP.P('<"&#REF!&">' || "&IF(MID(#REF!,1,4)="STUB","NULL","REC."&#REF!)&" || '</"&#REF!&">');" ->  | C556: ="DECODE(C_T."&#REF!&", 0, NULL, C_T."&#REF!&") AS "&#REF!&"," -> 
A557: ="HTP.P('<"&#REF!&">' || "&IF(MID(#REF!,1,4)="STUB","NULL","REC."&#REF!)&" || '</"&#REF!&">');" ->  | C557: ="DECODE(C_T."&#REF!&", 0, NULL, C_T."&#REF!&") AS "&#REF!&"," -> 
A558: ="HTP.P('<"&#REF!&">' || "&IF(MID(#REF!,1,4)="STUB","NULL","REC."&#REF!)&" || '</"&#REF!&">');" ->  | C558: ="DECODE(C_T."&#REF!&", 0, NULL, C_T."&#REF!&") AS "&#REF!&"," -> 
A559: ="HTP.P('<"&#REF!&">' || "&IF(MID(#REF!,1,4)="STUB","NULL","REC."&#REF!)&" || '</"&#REF!&">');" ->  | C559: ="DECODE(C_T."&#REF!&", 0, NULL, C_T."&#REF!&") AS "&#REF!&"," -> 
A560: ="HTP.P('<"&#REF!&">' || "&IF(MID(#REF!,1,4)="STUB","NULL","REC."&#REF!)&" || '</"&#REF!&">');" ->  | C560: ="DECODE(C_T."&#REF!&", 0, NULL, C_T."&#REF!&") AS "&#REF!&"," -> 
A561: ="HTP.P('<"&#REF!&">' || "&IF(MID(#REF!,1,4)="STUB","NULL","REC."&#REF!)&" || '</"&#REF!&">');" ->  | C561: ="DECODE(C_T."&#REF!&", 0, NULL, C_T."&#REF!&") AS "&#REF!&"," -> 
A562: ="HTP.P('<"&#REF!&">' || "&IF(MID(#REF!,1,4)="STUB","NULL","REC."&#REF!)&" || '</"&#REF!&">');" ->  | C562: ="DECODE(C_T."&#REF!&", 0, NULL, C_T."&#REF!&") AS "&#REF!&"," -> 
A563: ="HTP.P('<"&#REF!&">' || "&IF(MID(#REF!,1,4)="STUB","NULL","REC."&#REF!)&" || '</"&#REF!&">');" ->  | C563: ="DECODE(C_T."&#REF!&", 0, NULL, C_T."&#REF!&") AS "&#REF!&"," -> 
A564: ="HTP.P('<"&#REF!&">' || "&IF(MID(#REF!,1,4)="STUB","NULL","REC."&#REF!)&" || '</"&#REF!&">');" ->  | C564: ="DECODE(C_T."&#REF!&", 0, NULL, C_T."&#REF!&") AS "&#REF!&"," -> 
A565: ="HTP.P('<"&#REF!&">' || "&IF(MID(#REF!,1,4)="STUB","NULL","REC."&#REF!)&" || '</"&#REF!&">');" ->  | C565: ="DECODE(C_T."&#REF!&", 0, NULL, C_T."&#REF!&") AS "&#REF!&"," -> 
A566: ="HTP.P('<"&#REF!&">' || "&IF(MID(#REF!,1,4)="STUB","NULL","REC."&#REF!)&" || '</"&#REF!&">');" ->  | C566: ="DECODE(C_T."&#REF!&", 0, NULL, C_T."&#REF!&") AS "&#REF!&"," -> 
A567: ="HTP.P('<"&#REF!&">' || "&IF(MID(#REF!,1,4)="STUB","NULL","REC."&#REF!)&" || '</"&#REF!&">');" ->  | C567: ="DECODE(C_T."&#REF!&", 0, NULL, C_T."&#REF!&") AS "&#REF!&"," -> 
... 389 more rows

Sheet TECH_HORISONTAL (hidden)
A2: ENR_INCOME_GEN_ADD_RANGE
C3: × | D3: ="1.2."&N3 -> 1.2.TBD | F3: тыс.кВт*ч | G3: 30 | H3: =SUM(I3:L3) -> 0 | N3: TBD | T3: DYNAMIC.ENR.INCOME.GEN
A5: ENR_INCOME_NON_NET_ADD_RANGE
C6: × | D6: ="1.3."&N6 -> 1.3.TBD | F6: тыс.кВт*ч | G6: 230 | H6: =SUM(I6:L6) -> 0 | N6: TBD | T6: DYNAMIC.ENR.INCOME.NON.NET
A8: ENR_INCOME_ADJACENT_NET_ADD_RANGE
C9: × | D9: ="1.4."&N9 -> 1.4.TBD | F9: тыс.кВт*ч | G9: 430 | H9: =SUM(I9:L9) -> 0 | N9: TBD | T9: DYNAMIC.ENR.INCOME.ADJACENT.NET
A11: ENR_OUTCOME_ADJACENT_NET_ADD_RANGE
C12: × | D12: ="4.3."&N12 -> 4.3.TBD | F12: тыс.кВт*ч | G12: 750 | H12: =SUM(I12:L12) -> 0 | N12: TBD | T12: DYNAMIC.ENR.OUTCOME.ADJACENT.NET
A14: PWR_INCOME_GEN_ADD_RANGE
C15: × | D15: ="12.2."&N15 -> 12.2.TBD | F15: МВт | G15: 1060 | H15: =SUM(I15:L15) -> 0 | N15: TBD | T15: DYNAMIC.PWR.INCOME.GEN
A17: PWR_INCOME_NON_NET_ADD_RANGE
C18: × | D18: ="12.3."&N18 -> 12.3.TBD | F18: МВт | G18: 1260 | H18: =SUM(I18:L18) -> 0 | N18: TBD | T18: DYNAMIC.PWR.INCOME.NON.NET
A20: PWR_INCOME_ADJACENT_NET_ADD_RANGE
C21: × | D21: ="12.4."&N21 -> 12.4.TBD | F21: МВт | G21: 1460 | H21: =SUM(I21:L21) -> 0 | N21: TBD | T21: DYNAMIC.PWR.INCOME.ADJACENT.NET
A23: PWR_OUTCOME_ADJACENT_NET_ADD_RANGE
C24: × | D24: ="15.3."&N24 -> 15.3.TBD | F24: МВт | G24: 1780 | H24: =SUM(I24:L24) -> 0 | N24: TBD | T24: DYNAMIC.PWR.OUTCOME.ADJACENT.NET

Sheet DICTIONARIES (hidden)
B1: Наименование списка / параметра | C1: Элемент списка / значение параметра
B2: DIC_NAME | C2: DIC_VALUE | D2: YEAR_NAME | E2: MONTH_NAME
B3: NO_JUSTIFICATION_REPORT_TILL_DATE_APR | C3: 2024-05-27 23:59:59 | D3: 2024 | E3: ALL
B4: NO_JUSTIFICATION_REPORT_TILL_DATE_AUG | C4: 2024-09-25 23:59:59 | D4: 2024 | E4: ALL
B5: NO_JUSTIFICATION_REPORT_TILL_DATE_DEC | C5: 2025-01-27 23:59:59 | D5: 2024 | E5: ALL
B6: NO_JUSTIFICATION_REPORT_TILL_DATE_FEB | C6: 2024-03-25 23:59:59 | D6: 2024 | E6: ALL
B7: NO_JUSTIFICATION_REPORT_TILL_DATE_JAN | C7: 2024-02-26 23:59:59 | D7: 2024 | E7: ALL
B8: NO_JUSTIFICATION_REPORT_TILL_DATE_JUL | C8: 2024-08-26 23:59:59 | D8: 2024 | E8: ALL
B9: NO_JUSTIFICATION_REPORT_TILL_DATE_JUN | C9: 2024-07-25 23:59:59 | D9: 2024 | E9: ALL
B10: NO_JUSTIFICATION_REPORT_TILL_DATE_MAR | C10: 2024-04-25 23:59:59 | D10: 2024 | E10: ALL
B11: NO_JUSTIFICATION_REPORT_TILL_DATE_MAY | C11: 2024-06-25 23:59:59 | D11: 2024 | E11: ALL
B12: NO_JUSTIFICATION_REPORT_TILL_DATE_NOV | C12: 2024-12-25 23:59:59 | D12: 2024 | E12: ALL
B13: NO_JUSTIFICATION_REPORT_TILL_DATE_OCT | C13: 2024-11-25 23:59:59 | D13: 2024 | E13: ALL
B14: NO_JUSTIFICATION_REPORT_TILL_DATE_SEP | C14: 2024-10-25 23:59:59 | D14: 2024 | E14: ALL
B15: NO_JUSTIFICATION_REPORT_TILL_DATE_TTL | C15: 2025-02-17 23:59:59 | D15: 2024 | E15: ALL
B16: REPORT_EXISTENCE_STATUS | C16: ERROR | D16: 2024 | E16: ALL
B17: REPORT_MONTH_ABSENCE | C17: (M01)Y(M02)Y(M03)Y(M04)Y(M05)Y(M06)Y(M07)Y(M08)Y(M09)Y(M10)Y(M11)Y(M12)Y | D17: 2024 | E17: ALL
B18: VDET_LIST | C18: ГП | D18: 2024 | E18: ALL
B19: VDET_LIST | C19: ГП :: Комбинированная выработка | D19: 2024 | E19: ALL
B20: VDET_LIST | C20: ГП :: Комбинированная выработка :: Некомбинированная выработка | D20: 2024 | E20: ALL
B21: VDET_LIST | C21: ГП :: Некомбинированная выработка | D21: 2024 | E21: ALL
B22: VDET_LIST | C22: Комбинированная выработка | D22: 2024 | E22: ALL
B23: VDET_LIST | C23: Комбинированная выработка :: Некомбинированная выработка | D23: 2024 | E23: ALL
B24: VDET_LIST | C24: Некомбинированная выработка | D24: 2024 | E24: ALL
B25: VDET_LIST | C25: Нерегулируемый сбыт | D25: 2024 | E25: ALL
B26: VDET_LIST | C26: Нерегулируемый сбыт :: ГП | D26: 2024 | E26: ALL
B27: VDET_LIST | C27: Нерегулируемый сбыт :: ГП :: Комбинированная выработка :: Некомбинированная выработка | D27: 2024 | E27: ALL
B28: VDET_LIST | C28: Нерегулируемый сбыт :: Комбинированная выработка | D28: 2024 | E28: ALL
B29: VDET_LIST | C29: Нерегулируемый сбыт :: Комбинированная выработка :: Некомбинированная выработка | D29: 2024 | E29: ALL
B30: VDET_LIST | C30: Нерегулируемый сбыт :: Некомбинированная выработка | D30: 2024 | E30: ALL
B31: VDET_LIST | C31: РСО | D31: 2024 | E31: ALL
B32: VDET_LIST | C32: РСО :: ГП | D32: 2024 | E32: ALL
B33: VDET_LIST | C33: РСО :: ГП :: Комбинированная выработка | D33: 2024 | E33: ALL
B34: VDET_LIST | C34: РСО :: ГП :: Комбинированная выработка :: Некомбинированная выработка | D34: 2024 | E34: ALL
B35: VDET_LIST | C35: РСО :: ГП :: Некомбинированная выработка | D35: 2024 | E35: ALL
B36: VDET_LIST | C36: РСО :: Комбинированная выработка | D36: 2024 | E36: ALL
B37: VDET_LIST | C37: РСО :: Комбинированная выработка :: Некомбинированная выработка | D37: 2024 | E37: ALL
B38: VDET_LIST | C38: РСО :: Некомбинированная выработка | D38: 2024 | E38: ALL
B39: VDET_LIST | C39: РСО :: Нерегулируемый сбыт | D39: 2024 | E39: ALL
B40: VDET_LIST | C40: РСО :: Нерегулируемый сбыт :: ГП | D40: 2024 | E40: ALL
B41: VDET_LIST | C41: РСО :: Нерегулируемый сбыт :: ГП :: Комбинированная выработка :: Некомбинированная выработка | D41: 2024 | E41: ALL
B42: VDET_LIST | C42: РСО :: Нерегулируемый сбыт :: ГП :: Некомбинированная выработка | D42: 2024 | E42: ALL
B43: VDET_LIST | C43: РСО :: Нерегулируемый сбыт :: Комбинированная выработка | D43: 2024 | E43: ALL
B44: VDET_LIST | C44: РСО :: Нерегулируемый сбыт :: Комбинированная выработка :: Некомбинированная выработка | D44: 2024 | E44: ALL
B45: VDET_LIST | C45: РСО :: Нерегулируемый сбыт :: Некомбинированная выработка | D45: 2024 | E45: ALL
B46: VDET_LIST | C46: Региональная генерация | D46: 2024 | E46: ALL
B47: VDET_LIST | C47: Сбытовая компания | D47: 2024 | E47: ALL
B48: VDET_LIST | C48: Сетевая компания | D48: 2024 | E48: ALL
B49: VDET_LIST | C49: Станция - поставщик ЭЭ | D49: 2024 | E49: ALL
B50: VDET_LIST | C50: ФСК | D50: 2024 | E50: ALL
B51: VDET_LIST | C51: ФСК :: РСО | D51: 2024 | E51: ALL
B52: VDET_LIST | C52: ФСК :: РСО :: Некомбинированная выработка | D52: 2024 | E52: ALL
B53: VDET_LIST | C53: ФСК :: РСО :: Нерегулируемый сбыт | D53: 2024 | E53: ALL
B54: VDET_LIST | C54: ФСК :: РСО :: Нерегулируемый сбыт :: Комбинированная выработка :: Некомбинированная выработка | D54: 2024 | E54: ALL
B55: VDET_LIST | C55: ЭСО | D55: 2024 | E55: ALL

Sheet AUTHORIZATION (hidden)
A1: L1 | B1: L2
A2: ACCESS GRANTED | B2: YOgEFjopMwxdVAwUFJmpfHTTAkzxsWJqmkWzpGPTWvTglrAvoShhHUIYzfCxGxgz178i236i213i18, 194i226i26i82C04481B289A82E848E4FD7F3D5C6DE819dFEBd2407t56t03t918537000

Sheet REESTR_ORG (hidden)
DQ1: № | DR1: НСРФ | DS1: Муниципальный район | DT1: ОКТМР | DU1: Муниципальное образование | DV1: ОКТМО | DW1: RST_ORG_ID | DX1: Наименование ЮЛ / ИП | DY1: ИНН | DZ1: КПП | EA1: ОГРН | EB1: Дата создания ЮЛ / ИП | EC1: Дата ликвидации ЮЛ / ИП | ED1: Дата начала ВД | EE1: Дата окончания ВД | EF1: Вид деятельности | EG1: ВД (PATH) | EH1: ВД (OBSOLETE) | EI1: Является регулируемой
DQ2: NUMBER | DR2: REGION | DS2: MR | DT2: OKTMR | DU2: MO | DV2: OKTMO | DW2: RST_ORG_ID | DX2: ORG | DY2: INN | DZ2: KPP | EA2: OGRN | EB2: ORG_SD | EC2: ORG_ED | ED2: VDET_SD | EE2: VDET_ED | EF2: VDET_LIST | EG2: VDET_FULL_LIST | EH2: VDET | EI2: HAS_TARIFF
DR3: Тюменская область | DW3: 26361252 | DX3: АО "Аэропорт Белоярский" | DY3: 8611002077 | DZ3: 861101001 | EA3: 1028601522036 | EF3: РСО | EG3: /Электроэнергетика/Передача ЭЭ/РСО | EI3: Y
DR4: Тюменская область | DW4: 26320038 | DX4: АО "Аэропорт Рощино" | DY4: 7204660086 | DZ4: 720301001 | EA4: 1027200783070 | EF4: РСО | EG4: /Электроэнергетика/Передача ЭЭ/РСО | EI4: Y
DR5: Тюменская область | DW5: 26361211 | DX5: АО "Аэропорт Сургут" | DY5: 8602060523 | DZ5: 860201001 | EA5: 1028600603998 | EB5: 1997-09-04 | EF5: РСО | EG5: /Электроэнергетика/Передача ЭЭ/РСО | EI5: Y
DR6: Тюменская область | DW6: 26320069 | DX6: АО "Аэропорт Урай" | DY6: 8606010379 | DZ6: 860601001 | EA6: 1058600100327 | EF6: РСО | EG6: /Электроэнергетика/Передача ЭЭ/РСО | EI6: Y
DR7: Тюменская область | DW7: 31077487 | DX7: АО "БЕРЕЗКАГАЗ ЮГРА" | DY7: 8601036768 | DZ7: 860101001 | EA7: 1088601002511 | EB7: 2008-10-31 | EF7: Некомбинированная выработка | EG7: /Электроэнергетика/Производство ЭЭ/Некомбинированная выработка | EI7: Y
DR8: Тюменская область | DW8: 31438264 | DX8: АО "БерезкаГаз Обь" | DY8: 8601036750 | DZ8: 860101001 | EA8: 1088601002522 | EB8: 2008-10-30 | EF8: Некомбинированная выработка | EG8: /Электроэнергетика/Производство ЭЭ/Некомбинированная выработка | EI8: Y
DR9: Тюменская область | DW9: 26320052 | DX9: АО "Варьеганэнергонефть" | DY9: 8609003059 | DZ9: 860901001 | EA9: 1028601465683 | EF9: РСО | EG9: /Электроэнергетика/Передача ЭЭ/РСО | EI9: Y
DR10: Тюменская область | DW10: 26405782 | DX10: АО "Вынгапуровский тепловодоканал" | DY10: 8905045443 | DZ10: 890501001 | EA10: 1098905000622 | EB10: 2009-04-14 | EF10: РСО | EG10: /Электроэнергетика/Передача ЭЭ/РСО | EI10: Y
DR11: Тюменская область | DW11: 26522777 | DX11: АО "Газпром энергосбыт Тюмень" | DY11: 8602067215 | DZ11: 860201001 | EA11: 1058602102415 | EB11: 2005-07-01 | EF11: Нерегулируемый сбыт :: ГП | EG11: /Электроэнергетика/Сбыт ЭЭ/Нерегулируемый сбыт :: /Электроэнергетика/Сбыт ЭЭ/ГП | EI11: Y
DR12: Тюменская область | DW12: 26318885 | DX12: АО "Газпром энергосбыт" | DY12: 7705750968 | DZ12: 772901001 | EA12: 5067746436731 | EF12: Нерегулируемый сбыт :: Комбинированная выработка | EG12: /Электроэнергетика/Сбыт ЭЭ/Нерегулируемый сбыт :: /Электроэнергетика/Производство ЭЭ/Комбинированная выработка | EI12: Y
DR13: Тюменская область | DW13: 26320074 | DX13: АО "Городские электрические сети" | DY13: 8603004190 | DZ13: 860301001 | EA13: 1028600957538 | EB13: 1995-12-18 | EF13: РСО | EG13: /Электроэнергетика/Передача ЭЭ/РСО | EI13: Y
DR14: Тюменская область | DW14: 31209858 | DX14: АО "Губкинские городские электрические сети" | DY14: 8911015126 | DZ14: 891101001 | EA14: 1188901002718 | EB14: 2018-07-02 | EF14: РСО | EG14: /Электроэнергетика/Передача ЭЭ/РСО | EI14: Y
DR15: Тюменская область | DW15: 26448590 | DX15: АО "ЕЭСнК" | DY15: 7727232575 | DZ15: 997650001 | EA15: 1027727016350 | EB15: 2012-12-09 | EF15: Нерегулируемый сбыт | EG15: /Электроэнергетика/Сбыт ЭЭ/Нерегулируемый сбыт | EI15: Y
DR16: Тюменская область | DW16: 28145546 | DX16: АО "ИНТЕР РАО - Электрогенерация" | DY16: 7704784450 | DZ16: 862450001 | EA16: 1117746460358 | EB16: 2011-06-15 | EF16: Некомбинированная выработка | EG16: /Электроэнергетика/Производство ЭЭ/Некомбинированная выработка | EI16: Y
DR17: Тюменская область | DW17: 26318876 | DX17: АО "Мосэнергосбыт" | DY17: 7736520080 | DZ17: 997650001 | EA17: 1057746557329 | EF17: Нерегулируемый сбыт | EG17: /Электроэнергетика/Сбыт ЭЭ/Нерегулируемый сбыт | EI17: Y
DR18: Тюменская область | DW18: 26405742 | DX18: АО "Муравленковское предприятие городских электрических сетей" | DY18: 8905063058 | DZ18: 890501001 | EA18: 1168901056653 | EF18: РСО | EG18: /Электроэнергетика/Передача ЭЭ/РСО | EI18: Y
DR19: Тюменская область | DW19: 26535108 | DX19: АО "ННК-Нижневартовское нефтегазодобывающее предприятие" | DY19: 8603089941 | DZ19: 997250001 | EA19: 1028600944250 | EF19: РСО | EG19: /Электроэнергетика/Передача ЭЭ/РСО | EI19: Y
DR20: Тюменская область | DW20: 27095280 | DX20: АО "ННК-Энерго" | DY20: 2722080626 | DZ20: 272201001 | EA20: 1082722013110 | EF20: Нерегулируемый сбыт | EG20: /Электроэнергетика/Сбыт ЭЭ/Нерегулируемый сбыт | EI20: Y
DR21: Тюменская область | DW21: 26590793 | DX21: АО "Надымское авиапредприятие" | DY21: 8903025610 | DZ21: 890301001 | EA21: 1068903001265 | EF21: РСО | EG21: /Электроэнергетика/Передача ЭЭ/РСО | EI21: Y
DR22: Тюменская область | DW22: 26319041 | DX22: АО "Новосибирскэнергосбыт" | DY22: 5407025576 | DZ22: 997650001 | EA22: 1065407151127 | EF22: Нерегулируемый сбыт | EG22: /Электроэнергетика/Сбыт ЭЭ/Нерегулируемый сбыт | EI22: Y
DR23: Тюменская область | DW23: 26361326 | DX23: АО "Новоуренгойский ОАО" | DY23: 8904045602 | DZ23: 890401001 | EA23: 1048900319412 | EF23: РСО | EG23: /Электроэнергетика/Передача ЭЭ/РСО | EI23: Y
DR24: Тюменская область | DW24: 28143476 | DX24: АО "НордЭнерджиСистемс" | DY24: 8903032551 | DZ24: 720301001 | EA24: 1128903001281 | EB24: 2012-11-12 | EF24: РСО | EG24: /Электроэнергетика/Передача ЭЭ/РСО | EI24: Y
DR25: Тюменская область | DW25: 26617350 | DX25: АО "Оборонэнергосбыт" | DY25: 7704731218 | DZ25: 773043001 | EA25: 1097746448315 | EB25: 2010-03-23 | EC25: 2024-02-12 | EF25: Нерегулируемый сбыт | EG25: /Электроэнергетика/Сбыт ЭЭ/Нерегулируемый сбыт | EI25: Y
DR26: Тюменская область | DW26: 26375346 | DX26: АО "Птицефабрика "Боровская" | DY26: 7224008030 | DZ26: 722401001 | EA26: 1027200875965 | EF26: РСО | EG26: /Электроэнергетика/Передача ЭЭ/РСО | EI26: Y
DR27: Тюменская область | DW27: 28903717 | DX27: АО "РСК Ямала" | DY27: 8901008899 | DZ27: 890101001 | EA27: 1148901001094 | EB27: 2014-09-15 | EC27: 2024-01-31 | EF27: РСО | EG27: /Электроэнергетика/Передача ЭЭ/РСО | EI27: Y
DR28: Тюменская область | DW28: 26522781 | DX28: АО "Россети Тюмень" | DY28: 8602060185 | DZ28: 997650001 | EA28: 1028600587399 | EF28: РСО | EG28: /Электроэнергетика/Передача ЭЭ/РСО | EI28: Y
DR29: Тюменская область | DW29: 26320020 | DX29: АО "СУЭНКО" | DY29: 7205011944 | DZ29: 720301001 | EA29: 1027201233620 | EF29: РСО :: Нерегулируемый сбыт :: Комбинированная выработка :: Некомбинированная выработка | EG29: /Электроэнергетика/Передача ЭЭ/РСО :: /Электроэнергетика/Сбыт ЭЭ/Нерегулируемый сбыт :: /Электроэнергетика/Производство ЭЭ/Комбинированная выработка :: /Электроэнергетика/Производство ЭЭ/Некомбинированная выработка | EI29: Y
DR30: Тюменская область | DW30: 26361309 | DX30: АО "Салехардэнерго" | DY30: 8901030855 | DZ30: 890101001 | EA30: 1158901001434 | EF30: ГП | EG30: /Электроэнергетика/Сбыт ЭЭ/ГП | EI30: Y
DR31: Тюменская область | DW31: 26361309 | DX31: АО "Салехардэнерго" | DY31: 8901030855 | DZ31: 890101001 | EA31: 1158901001434 | EF31: Нерегулируемый сбыт | EG31: /Электроэнергетика/Сбыт ЭЭ/Нерегулируемый сбыт | EI31: Y
DR32: Тюменская область | DW32: 26535092 | DX32: АО "Самотлорнефтегаз" | DY32: 8603089934 | DZ32: 997250001 | EA32: 1028600940576 | EF32: РСО | EG32: /Электроэнергетика/Передача ЭЭ/РСО | EI32: Y
DR33: Тюменская область | DW33: 27662523 | DX33: АО "СибурТюменьГаз" | DY33: 7202116628 | DZ33: 860301001 | EA33: 1037200611612 | EF33: Некомбинированная выработка | EG33: /Электроэнергетика/Производство ЭЭ/Некомбинированная выработка | EI33: Y
DR34: Тюменская область | DW34: 26448586 | DX34: АО "Сибурэнергоменеджмент" | DY34: 7727276526 | DZ34: 366301001 | EA34: 1063667286858 | EF34: Нерегулируемый сбыт | EG34: /Электроэнергетика/Сбыт ЭЭ/Нерегулируемый сбыт | EI34: Y
DR35: Тюменская область | DW35: 31414903 | DX35: АО "Синэрго" | DY35: 6672261117 | DZ35: 668501001 | EA35: 1086672003351 | EF35: Нерегулируемый сбыт | EG35: /Электроэнергетика/Сбыт ЭЭ/Нерегулируемый сбыт | EI35: Y
DR36: Тюменская область | DW36: 26496487 | DX36: АО "Тюменский завод медицинского оборудования и инструментов" | DY36: 7203000834 | DZ36: 720301001 | EA36: 1027200790198 | EF36: РСО | EG36: /Электроэнергетика/Передача ЭЭ/РСО | EI36: Y
DR37: Тюменская область | DW37: 26776132 | DX37: АО "Тюменский электромеханический завод" | DY37: 7204003108 | DZ37: 720301001 | EA37: 1027200813947 | EF37: РСО | EG37: /Электроэнергетика/Передача ЭЭ/РСО | EI37: Y
DR38: Тюменская область | DW38: 31595865 | DX38: АО "Уренгойская электросетевая компания" | DY38: 8904092592 | DZ38: 890401001 | EA38: 1228900001220 | EB38: 2022-05-23 | EF38: РСО | EG38: /Электроэнергетика/Передача ЭЭ/РСО | EI38: Y
DR39: Тюменская область | DW39: 31670218 | DX39: АО "Ханты-Мансийские городские электрические сети" | DY39: 8601073745 | DZ39: 860101001 | EA39: 1238600003180 | EF39: РСО | EG39: /Электроэнергетика/Передача ЭЭ/РСО | EI39: Y
DR40: Тюменская область | DW40: 26576339 | DX40: АО "Черногорэнерго" | DY40: 8620001023 | DZ40: 860301001 | EA40: 1028600951081 | EB40: 1994-02-09 | EF40: РСО | EG40: /Электроэнергетика/Передача ЭЭ/РСО | EI40: Y
DR41: Тюменская область | DW41: 26383121 | DX41: АО "Энерго-Газ-Ноябрьск" | DY41: 8905033649 | DZ41: 890501001 | EA41: 1048900553206 | EB41: 2004-06-23 | EF41: РСО | EG41: /Электроэнергетика/Передача ЭЭ/РСО | EI41: Y
DR42: Тюменская область | DW42: 26500047 | DX42: АО "Энергосбытовая компания "Восток" | DY42: 7705424509 | DZ42: 997650001 | EA42: 1037739123696 | EB42: 2001-12-19 | EF42: ГП | EG42: /Электроэнергетика/Сбыт ЭЭ/ГП | EI42: Y
DR43: Тюменская область | DW43: 26500047 | DX43: АО "Энергосбытовая компания "Восток" | DY43: 7705424509 | DZ43: 997650001 | EA43: 1037739123696 | EB43: 2001-12-19 | EF43: Нерегулируемый сбыт | EG43: /Электроэнергетика/Сбыт ЭЭ/Нерегулируемый сбыт | EI43: Y
DR44: Тюменская область | DW44: 26500047 | DX44: АО "Энергосбытовая компания "Восток" | DY44: 7705424509 | DZ44: 997650001 | EA44: 1037739123696 | EB44: 2001-12-19 | EF44: Нерегулируемый сбыт :: ГП | EG44: /Электроэнергетика/Сбыт ЭЭ/Нерегулируемый сбыт :: /Электроэнергетика/Сбыт ЭЭ/ГП | EI44: Y
DR45: Тюменская область | DW45: 27556259 | DX45: АО "ЮРЭСК" | DY45: 8601045152 | DZ45: 862450001 | EA45: 1118601002596 | EB45: 2011-01-18 | EF45: РСО | EG45: /Электроэнергетика/Передача ЭЭ/РСО | EI45: Y
DR46: Тюменская область | DW46: 26448471 | DX46: АО "ЮТЭК" | DY46: 8601022317 | DZ46: 862450001 | EA46: 1048600001141 | EB46: 2004-03-12 | EF46: ГП | EG46: /Электроэнергетика/Сбыт ЭЭ/ГП | EI46: Y
DR47: Тюменская область | DW47: 26460985 | DX47: АО "ЮТЭК-Региональные сети" | DY47: 8601033125 | DZ47: 860101001 | EA47: 1078601003788 | EB47: 2007-10-10 | EF47: РСО | EG47: /Электроэнергетика/Передача ЭЭ/РСО | EI47: Y
DR48: Тюменская область | DW48: 26318623 | DX48: АО "Югорская энергетическая компания децентрализованной зоны" (АО "Юграэнерго") | DY48: 8601029263 | DZ48: 860101001 | EA48: 1068601011511 | EB48: 2008-08-13 | EF48: Некомбинированная выработка | EG48: /Электроэнергетика/Производство ЭЭ/Некомбинированная выработка | EI48: Y
DR49: Тюменская область | DW49: 28856006 | DX49: АО "Юграавиа" | DY49: 8601053210 | DZ49: 860101001 | EA49: 1148601002109 | EF49: РСО | EG49: /Электроэнергетика/Передача ЭЭ/РСО | EI49: Y
DR50: Тюменская область | DW50: 31077321 | DX50: АО АРКТИКГАЗ | DY50: 8904056643 | DZ50: 890401001 | EA50: 1088900000452 | EB50: 2008-04-18 | EF50: Некомбинированная выработка | EG50: /Электроэнергетика/Производство ЭЭ/Некомбинированная выработка | EI50: Y
DR51: Тюменская область | DW51: 26360358 | DX51: АО Нижневартовская ГРЭС | DY51: 8620018330 | DZ51: 785150001 | EA51: 1078603011321 | EB51: 2007-12-10 | EF51: Комбинированная выработка | EG51: /Электроэнергетика/Производство ЭЭ/Комбинированная выработка | EI51: Y
DR52: Тюменская область | DW52: 27331297 | DX52: Акционерное общество "Оборонэнерго" - филиал "Уральский" | DY52: 7704726225 | DZ52: 667243001 | EA52: 1097746264230 | EF52: РСО | EG52: /Электроэнергетика/Передача ЭЭ/РСО | EI52: Y
DR53: Тюменская область | DW53: 26516002 | DX53: Акционерное общество "Энергопромышленная компания", г. Екатеринбург | DY53: 6661105959 | DZ53: 667101001 | EA53: 1026605226053 | EF53: Нерегулируемый сбыт | EG53: /Электроэнергетика/Сбыт ЭЭ/Нерегулируемый сбыт | EI53: Y
DR54: Тюменская область | DW54: 26826107 | DX54: Блокстанции ТЭ | DY54: 7200000000 | DZ54: 720000001 | EA54: отсутствует | EF54: Некомбинированная выработка | EG54: /Электроэнергетика/Производство ЭЭ/Некомбинированная выработка | EI54: Y
DR55: Тюменская область | DW55: 26320019 | DX55: ЗАО " Тюменский приборостроительный завод" | DY55: 7203000841 | DZ55: 720301001 | EA55: 1027200797403 | EF55: РСО | EG55: /Электроэнергетика/Передача ЭЭ/РСО | EI55: Y
DR56: Тюменская область | DW56: 26810875 | DX56: ЗАО "Завод "Сантехкомплект" | DY56: 7203039648 | DZ56: 720301001 | EA56: 1027200864943 | EB56: 2011-04-18 | EF56: Комбинированная выработка | EG56: /Электроэнергетика/Производство ЭЭ/Комбинированная выработка | EI56: Y
DR57: Тюменская область | DW57: 27623111 | DX57: ЗАО "Завод Тюменьремдормаш" | DY57: 7204005867 | DZ57: 722401001 | EA57: 1027200836288 | EB57: 1996-12-19 | EF57: РСО | EG57: /Электроэнергетика/Передача ЭЭ/РСО | EI57: Y
DR58: Тюменская область | DW58: 26375344 | DX58: МУП "Байкаловский ККП" | DY58: 7223000825 | DZ58: 720601001 | EA58: 1027201296572 | EB58: 2000-06-19 | EF58: Некомбинированная выработка | EG58: /Электроэнергетика/Производство ЭЭ/Некомбинированная выработка | EI58: Y
DR59: Тюменская область | DW59: 26640789 | DX59: МУП "Надымские городские электрические сети" | DY59: 8903030850 | DZ59: 890301001 | EA59: 1108903000910 | EB59: 2010-10-12 | EF59: РСО | EG59: /Электроэнергетика/Передача ЭЭ/РСО | EI59: Y
DR60: Тюменская область | DW60: 26508466 | DX60: МУП "Сургутские районные электрические сети" МО Сургутский район | DY60: 8617017320 | DZ60: 861701001 | EA60: 1028601680645 | EB60: 2002-04-27 | EF60: РСО | EG60: /Электроэнергетика/Передача ЭЭ/РСО | EI60: Y
DR61: Тюменская область | DW61: 28496726 | DX61: ОАО "РН-НЯГАНЬНЕФТЕГАЗ" | DY61: 8610010727 | DZ61: 861001001 | EA61: 1028601496725 | EB61: 2002-09-26 | EF61: РСО | EG61: /Электроэнергетика/Передача ЭЭ/РСО | EI61: Y
DR62: Тюменская область | DW62: 26535127 | DX62: ОАО "ТНК-Нягань" | DY62: 8610010727 | DZ62: 997150001 | EA62: 1028601496725 | EF62: РСО :: Комбинированная выработка :: Некомбинированная выработка | EG62: /Электроэнергетика/Передача ЭЭ/РСО :: /Электроэнергетика/Производство ЭЭ/Комбинированная выработка :: /Электроэнергетика/Производство ЭЭ/Некомбинированная выработка | EI62: Y
DR63: Тюменская область | DW63: 27094684 | DX63: ОАО «ЭСК РусГидро» | DY63: 7804403972 | DZ63: 772801001 | EA63: 1089848039973 | EF63: Нерегулируемый сбыт | EG63: /Электроэнергетика/Сбыт ЭЭ/Нерегулируемый сбыт | EI63: Y
DR64: Тюменская область | DW64: 26320027 | DX64: ОАО ТТК "КРОСНО" | DY64: 7203001250 | DZ64: 720301001 | EA64: 1027200806720 | EF64: РСО | EG64: /Электроэнергетика/Передача ЭЭ/РСО | EI64: Y
DR65: Тюменская область | DW65: 31304593 | DX65: ООО "АГГРЕКО ЕВРАЗИЯ" | DY65: 7705838531 | DZ65: 720301001 | EA65: 1087746507386 | EB65: 2008-04-14 | EF65: Нерегулируемый сбыт | EG65: /Электроэнергетика/Сбыт ЭЭ/Нерегулируемый сбыт | EI65: Y
DR66: Тюменская область | DW66: 28130329 | DX66: ООО "Агентство Интеллект-Сервис" | DY66: 7202082778 | DZ66: 720301001 | EA66: 1037200562200 | EB66: 2003-01-22 | EF66: РСО | EG66: /Электроэнергетика/Передача ЭЭ/РСО | EI66: Y
DR67: Тюменская область | DW67: 26320034 | DX67: ООО "Агропромэнергия" | DY67: 7224014468 | DZ67: 722401001 | EA67: 1027200866428 | EB67: 2001-01-29 | EF67: РСО | EG67: /Электроэнергетика/Передача ЭЭ/РСО | EI67: Y
DR68: Тюменская область | DW68: 31304588 | DX68: ООО "Альянс-Энергджи" Стрежевской филиал | DY68: 7709843116 | DZ68: 770401001 | EA68: 1097746758163 | EB68: 2009-11-28 | EF68: Нерегулируемый сбыт | EG68: /Электроэнергетика/Сбыт ЭЭ/Нерегулируемый сбыт | EI68: Y
DR69: Тюменская область | DW69: 26318820 | DX69: ООО "АтомЭнергоСбыт Бизнес" | DY69: 4633017746 | DZ69: 772501001 | EA69: 1064633003038 | EF69: Нерегулируемый сбыт | EG69: /Электроэнергетика/Сбыт ЭЭ/Нерегулируемый сбыт | EI69: Y
DR70: Тюменская область | DW70: 26361261 | DX70: ООО "Аэропорт Советский" | DY70: 8615001243 | DZ70: 861501001 | EA70: 1028601844204 | EB70: 1999-06-23 | EF70: РСО | EG70: /Электроэнергетика/Передача ЭЭ/РСО | EI70: Y
DR71: Тюменская область | DW71: 30942075 | DX71: ООО "Башнефть-Добыча" | DY71: 0277106840 | DZ71: 025250001 | EA71: 1090280032699 | EB71: 2018-01-01 | EF71: Некомбинированная выработка | EG71: /Электроэнергетика/Производство ЭЭ/Некомбинированная выработка | EI71: Y
DR72: Тюменская область | DW72: 30942075 | DX72: ООО "Башнефть-Добыча" | DY72: 0277106840 | DZ72: 025250001 | EA72: 1090280032699 | EB72: 2018-01-01 | EF72: РСО | EG72: /Электроэнергетика/Передача ЭЭ/РСО | EI72: Y
DR73: Тюменская область | DW73: 26583176 | DX73: ООО "Башнефть-Добыча" | DY73: 0277106840 | DZ73: 027501001 | EA73: 1090280032699 | EF73: РСО | EG73: /Электроэнергетика/Передача ЭЭ/РСО | EI73: Y
DR74: Тюменская область | DW74: 26405755 | DX74: ООО "Газпром добыча Уренгой" | DY74: 8904034784 | DZ74: 997250001 | EA74: 1028900628932 | EF74: РСО :: Комбинированная выработка :: Некомбинированная выработка | EG74: /Электроэнергетика/Передача ЭЭ/РСО :: /Электроэнергетика/Производство ЭЭ/Комбинированная выработка :: /Электроэнергетика/Производство ЭЭ/Некомбинированная выработка | EI74: Y
DR75: Тюменская область | DW75: 26405779 | DX75: ООО "Газпром добыча Ямбург" Филиал "Ямбурское районное энергетическое управление" | DY75: 8904034777 | DZ75: 890401001 | EA75: 1028900624576 | EF75: Нерегулируемый сбыт | EG75: /Электроэнергетика/Сбыт ЭЭ/Нерегулируемый сбыт | EI75: Y
DR76: Тюменская область | DW76: 26405779 | DX76: ООО "Газпром добыча Ямбург" Филиал "Ямбурское районное энергетическое управление" | DY76: 8904034777 | DZ76: 890401001 | EA76: 1028900624576 | EF76: Комбинированная выработка :: Некомбинированная выработка | EG76: /Электроэнергетика/Производство ЭЭ/Комбинированная выработка :: /Электроэнергетика/Производство ЭЭ/Некомбинированная выработка | EI76: Y
DR77: Тюменская область | DW77: 26576140 | DX77: ООО "Газпром трансгаз Сургут" | DY77: 8617002073 | DZ77: 997250001 | EA77: 1028601679314 | EB77: 2002-01-30 | EF77: РСО | EG77: /Электроэнергетика/Передача ЭЭ/РСО | EI77: Y
DR78: Тюменская область | DW78: 27753656 | DX78: ООО "Газпром трансгаз Сургут" Демьянское ЛПУ МГ | DY78: 8617002073 | DZ78: 722503003 | EA78: 1028601679314 | EF78: РСО | EG78: /Электроэнергетика/Передача ЭЭ/РСО | EI78: Y
DR79: Тюменская область | DW79: 27753726 | DX79: ООО "Газпром трансгаз Сургут" Ишимское ЛПУ МГ | DY79: 8617002073 | DZ79: 720503001 | EA79: 1028601679314 | EF79: РСО | EG79: /Электроэнергетика/Передача ЭЭ/РСО | EI79: Y
DR80: Тюменская область | DW80: 27753711 | DX80: ООО "Газпром трансгаз Сургут" Тобольское ЛПУ МГ | DY80: 8617002073 | DZ80: 720603002 | EA80: 1028601679314 | EF80: РСО | EG80: /Электроэнергетика/Передача ЭЭ/РСО | EI80: Y
DR81: Тюменская область | DW81: 27753688 | DX81: ООО "Газпром трансгаз Сургут" Туртасское ЛПУ МГ | DY81: 8617002073 | DZ81: 722503004 | EA81: 1028601679314 | EF81: РСО | EG81: /Электроэнергетика/Передача ЭЭ/РСО | EI81: Y
DR82: Тюменская область | DW82: 27753714 | DX82: ООО "Газпром трансгаз Сургут" Ярковское ЛПУ МГ | DY82: 8617002073 | DZ82: 722943001 | EA82: 1028601679314 | EF82: РСО | EG82: /Электроэнергетика/Передача ЭЭ/РСО | EI82: Y
DR83: Тюменская область | DW83: 26813772 | DX83: ООО "Газпром энергосбыт Брянск" | DY83: 8602173527 | DZ83: 785150001 | EA83: 1108602007557 | EB83: 2010-10-06 | EF83: Нерегулируемый сбыт | EG83: /Электроэнергетика/Сбыт ЭЭ/Нерегулируемый сбыт | EI83: Y
DR84: Тюменская область | DW84: 26405781 | DX84: ООО "Газпромнефть Энергосистемы" | DY84: 8905032490 | DZ84: 890501001 | EA84: 1038900945973 | EB84: 2003-12-01 | EF84: РСО | EG84: /Электроэнергетика/Передача ЭЭ/РСО | EI84: Y
DR85: Тюменская область | DW85: 26637532 | DX85: ООО "Газпромнефть-Хантос" | DY85: 8618006063 | DZ85: 997250001 | EA85: 1058600001118 | EB85: 2015-02-09 | EF85: РСО | EG85: /Электроэнергетика/Передача ЭЭ/РСО | EI85: Y
DR86: Тюменская область | DW86: 26637532 | DX86: ООО "Газпромнефть-Хантос" | DY86: 8618006063 | DZ86: 997250001 | EA86: 1058600001118 | EB86: 2015-02-09 | EF86: Некомбинированная выработка | EG86: /Электроэнергетика/Производство ЭЭ/Некомбинированная выработка | EI86: Y
DR87: Тюменская область | DW87: 26613700 | DX87: ООО "Гарант Энерго" | DY87: 7709782777 | DZ87: 770901001 | EA87: 1087746321827 | EF87: Нерегулируемый сбыт | EG87: /Электроэнергетика/Сбыт ЭЭ/Нерегулируемый сбыт | EI87: Y
DR88: Тюменская область | DW88: 31550222 | DX88: ООО "Городские электрические сети" | DY88: 8601070751 | DZ88: 860101001 | EA88: 1218600000244 | EB88: 2021-01-14 | EF88: ГП | EG88: /Электроэнергетика/Сбыт ЭЭ/ГП | EI88: Y
DR89: Тюменская область | DW89: 26320028 | DX89: ООО "ДСК-Энерго" | DY89: 7203144385 | DZ89: 720301001 | EA89: 1047200559405 | EB89: 2004-02-17 | EF89: РСО | EG89: /Электроэнергетика/Передача ЭЭ/РСО | EI89: Y
DR90: Тюменская область | DW90: 30433542 | DX90: ООО "Дорстрой" | DY90: 7204080494 | DZ90: 720301001 | EA90: 1037200650937 | EB90: 2003-11-13 | EF90: РСО | EG90: /Электроэнергетика/Передача ЭЭ/РСО | EI90: Y
DR91: Тюменская область | DW91: 30911713 | DX91: ООО "ЕЭС-Гарант" | DY91: 5024173259 | DZ91: 502401001 | EA91: 1175024009918 | EB91: 2017-03-01 | EF91: Нерегулируемый сбыт | EG91: /Электроэнергетика/Сбыт ЭЭ/Нерегулируемый сбыт | EI91: Y
DR92: Тюменская область | DW92: 31456063 | DX92: ООО "ЗапСибНефтехим" | DY92: 1658087524 | DZ92: 720601001 | EA92: 1071690035185 | EF92: Нерегулируемый сбыт | EG92: /Электроэнергетика/Сбыт ЭЭ/Нерегулируемый сбыт | EI92: Y
DR93: Тюменская область | DW93: 31456063 | DX93: ООО "ЗапСибНефтехим" | DY93: 1658087524 | DZ93: 720601001 | EA93: 1071690035185 | EF93: Комбинированная выработка | EG93: /Электроэнергетика/Производство ЭЭ/Комбинированная выработка | EI93: N
DR94: Тюменская область | DW94: 26508439 | DX94: ООО "Западно-Малобалыкское" | DY94: 8619010665 | DZ94: 997150001 | EA94: 1028601789567 | EF94: РСО :: Комбинированная выработка :: Некомбинированная выработка | EG94: /Электроэнергетика/Передача ЭЭ/РСО :: /Электроэнергетика/Производство ЭЭ/Комбинированная выработка :: /Электроэнергетика/Производство ЭЭ/Некомбинированная выработка | EI94: Y
DR95: Тюменская область | DW95: 28130321 | DX95: ООО "ИНТЕГРУС" | DY95: 7202190565 | DZ95: 720201001 | EA95: 1087232039949 | EF95: РСО | EG95: /Электроэнергетика/Передача ЭЭ/РСО | EI95: Y
DR96: Тюменская область | DW96: 26794654 | DX96: ООО "Ижэнергосбыт" | DY96: 1834024515 | DZ96: 184001001 | EA96: 1021801586762 | EF96: Нерегулируемый сбыт | EG96: /Электроэнергетика/Сбыт ЭЭ/Нерегулируемый сбыт | EI96: Y
DR97: Тюменская область | DW97: 27855290 | DX97: ООО "Инженерные изыскания" | DY97: 1103029229 | DZ97: 352801001 | EA97: 1041100670093 | EB97: 2004-01-14 | EF97: Нерегулируемый сбыт | EG97: /Электроэнергетика/Сбыт ЭЭ/Нерегулируемый сбыт | EI97: Y
DR98: Тюменская область | DW98: 26804488 | DX98: ООО "КНАУФ ЭНЕРГИЯ" | DY98: 7729677594 | DZ98: 772901001 | EA98: 1117746197964 | EF98: Нерегулируемый сбыт | EG98: /Электроэнергетика/Сбыт ЭЭ/Нерегулируемый сбыт | EI98: Y
DR99: Тюменская область | DW99: 31420184 | DX99: ООО "ЛУКОЙЛ-АИК" | DY99: 8608059605 | DZ99: 860801001 | EA99: 1178617009251 | EB99: 2017-06-01 | EF99: Комбинированная выработка :: Некомбинированная выработка | EG99: /Электроэнергетика/Производство ЭЭ/Комбинированная выработка :: /Электроэнергетика/Производство ЭЭ/Некомбинированная выработка | EI99: Y
DR100: Тюменская область | DW100: 26361243 | DX100: ООО "ЛУКОЙЛ-Западная Сибирь" | DY100: 8608048498 | DZ100: 860602001 | EA100: 1028601441978 | EF100: Комбинированная выработка :: Некомбинированная выработка | EG100: /Электроэнергетика/Производство ЭЭ/Комбинированная выработка :: /Электроэнергетика/Производство ЭЭ/Некомбинированная выработка | EI100: Y
DR101: Тюменская область | DW101: 26413215 | DX101: ООО "ЛУКОЙЛ-ЭНЕРГОСЕТИ" | DY101: 5260230051 | DZ101: 525350001 | EA101: 1088607000217 | EF101: Нерегулируемый сбыт | EG101: /Электроэнергетика/Сбыт ЭЭ/Нерегулируемый сбыт | EI101: Y
DR102: Тюменская область | DW102: 28046959 | DX102: ООО "ЛУКОЙЛ-ЭНЕРГОСЕТИ" | DY102: 5260230051 | DZ102: 770901001 | EA102: 1088607000217 | EB102: 2013-01-17 | EF102: Нерегулируемый сбыт | EG102: /Электроэнергетика/Сбыт ЭЭ/Нерегулируемый сбыт | EI102: Y
DR103: Тюменская область | DW103: 31340189 | DX103: ООО "МСК Энерго" | DY103: 7725567512 | DZ103: 772901001 | EA103: 1067746494254 | EF103: Нерегулируемый сбыт | EG103: /Электроэнергетика/Сбыт ЭЭ/Нерегулируемый сбыт | EI103: Y
DR104: Тюменская область | DW104: 31214277 | DX104: ООО "МТС ЭНЕРГО" | DY104: 9709006506 | DZ104: 772601001 | EA104: 1177746748376 | EB104: 2018-10-24 | EF104: Нерегулируемый сбыт | EG104: /Электроэнергетика/Сбыт ЭЭ/Нерегулируемый сбыт | EI104: Y
DR105: Тюменская область | DW105: 28147378 | DX105: ООО "МагнитЭнерго" | DY105: 7715902899 | DZ105: 231101001 | EA105: 1127746076710 | EF105: Нерегулируемый сбыт | EG105: /Электроэнергетика/Сбыт ЭЭ/Нерегулируемый сбыт | EI105: Y
DR106: Тюменская область | DW106: 26320065 | DX106: ООО "Мегионэнергонефть" | DY106: 8605016890 | DZ106: 860501001 | EA106: 1048602900060 | EB106: 2004-01-14 | EF106: РСО | EG106: /Электроэнергетика/Передача ЭЭ/РСО | EI106: Y
DR107: Тюменская область | DW107: 26319012 | DX107: ООО "Нижневартовская энергосбытовая компания" | DY107: 8603109926 | DZ107: 860301001 | EA107: 1038601750472 | EF107: ГП | EG107: /Электроэнергетика/Сбыт ЭЭ/ГП | EI107: Y
DR108: Тюменская область | DW108: 28953431 | DX108: ООО "Новатэк-Юрхаровнефтегаз" | DY108: 8903021599 | DZ108: 890401001 | EA108: 1028900578134 | EF108: Комбинированная выработка :: Некомбинированная выработка | EG108: /Электроэнергетика/Производство ЭЭ/Комбинированная выработка :: /Электроэнергетика/Производство ЭЭ/Некомбинированная выработка | EI108: Y
DR109: Тюменская область | DW109: 31077508 | DX109: ООО "Новоуренгойский газохимический комплекс" | DY109: 8904006547 | DZ109: 890401001 | EA109: 1028900620264 | EB109: 2002-08-21 | EF109: Некомбинированная выработка | EG109: /Электроэнергетика/Производство ЭЭ/Некомбинированная выработка | EI109: Y
DR110: Тюменская область | DW110: 26637523 | DX110: ООО "Ноябрьская ПГЭ" | DY110: 8905037499 | DZ110: 890501001 | EA110: 1068905007038 | EB110: 2006-04-04 | EF110: Комбинированная выработка | EG110: /Электроэнергетика/Производство ЭЭ/Комбинированная выработка | EI110: Y
DR111: Тюменская область | DW111: 26319003 | DX111: ООО "Промэнергосбыт" | DY111: 7206036155 | DZ111: 720601001 | EA111: 1077206001993 | EF111: Нерегулируемый сбыт | EG111: /Электроэнергетика/Сбыт ЭЭ/Нерегулируемый сбыт | EI111: Y
DR112: Тюменская область | DW112: 31387166 | DX112: ООО "ПрофСервисТрейд" | DY112: 7707820378 | DZ112: 771401001 | EA112: 5137746135335 | EB112: 2013-01-29 | EF112: Нерегулируемый сбыт | EG112: /Электроэнергетика/Сбыт ЭЭ/Нерегулируемый сбыт | EI112: Y
DR113: Тюменская область | DW113: 26320082 | DX113: ООО "РН - Юганскнефтегаз" | DY113: 8604035473 | DZ113: 997250001 | EA113: 1058602819538 | EF113: РСО | EG113: /Электроэнергетика/Передача ЭЭ/РСО | EI113: Y
DR114: Тюменская область | DW114: 26320082 | DX114: ООО "РН - Юганскнефтегаз" | DY114: 8604035473 | DZ114: 997250001 | EA114: 1058602819538 | EF114: Некомбинированная выработка | EG114: /Электроэнергетика/Производство ЭЭ/Некомбинированная выработка | EI114: Y
DR115: Тюменская область | DW115: 31077347 | DX115: ООО "РН-Уватнефтегаз" | DY115: 7225003194 | DZ115: 722501001 | EA115: 1027201295395 | EB115: 2002-11-27 | EF115: Некомбинированная выработка | EG115: /Электроэнергетика/Производство ЭЭ/Некомбинированная выработка | EI115: Y
DR116: Тюменская область | DW116: 26416221 | DX116: ООО "РН-Энерго" | DY116: 7706525041 | DZ116: 997650001 | EA116: 1047796118182 | EB116: 2012-05-02 | EF116: Нерегулируемый сбыт | EG116: /Электроэнергетика/Сбыт ЭЭ/Нерегулируемый сбыт | EI116: Y
DR117: Тюменская область | DW117: 28494201 | DX117: ООО "РУСЭНЕРГО" | DY117: 4401144416 | DZ117: 770501001 | EA117: 1134401010083 | EF117: Нерегулируемый сбыт | EG117: /Электроэнергетика/Сбыт ЭЭ/Нерегулируемый сбыт | EI117: Y
DR118: Тюменская область | DW118: 30941442 | DX118: ООО "Региональная энергетическая компания" | DY118: 7203412147 | DZ118: 720301001 | EA118: 1177232006104 | EB118: 2017-03-06 | EF118: РСО | EG118: /Электроэнергетика/Передача ЭЭ/РСО | EI118: Y
DR119: Тюменская область | DW119: 26406211 | DX119: ООО "Русэнергоресурс" | DY119: 7706288496 | DZ119: 770401001 | EA119: 1037706004346 | EF119: Нерегулируемый сбыт | EG119: /Электроэнергетика/Сбыт ЭЭ/Нерегулируемый сбыт | EI119: Y
DR120: Тюменская область | DW120: 26502786 | DX120: ООО "Русэнергосбыт" | DY120: 7706284124 | DZ120: 770401001 | EA120: 1027706023058 | EF120: Нерегулируемый сбыт | EG120: /Электроэнергетика/Сбыт ЭЭ/Нерегулируемый сбыт | EI120: Y
DR121: Тюменская область | DW121: 30433231 | DX121: ООО "СеверСетьРазвитие" | DY121: 8901021265 | DZ121: 667101001 | EA121: 1088901000825 | EB121: 2008-04-22 | EF121: РСО | EG121: /Электроэнергетика/Передача ЭЭ/РСО | EI121: Y
DR122: Тюменская область | DW122: 26637526 | DX122: ООО "Северная ПЛЭС" | DY122: 7716605105 | DZ122: 890301001 | EA122: 1087746555621 | EF122: Некомбинированная выработка | EG122: /Электроэнергетика/Производство ЭЭ/Некомбинированная выработка | EI122: Y
DR123: Тюменская область | DW123: 26522789 | DX123: ООО "Северремприбор" | DY123: 8602248187 | DZ123: 860201001 | EA123: 1058602080525 | EF123: РСО | EG123: /Электроэнергетика/Передача ЭЭ/РСО | EI123: Y
DR124: Тюменская область | DW124: 31442268 | DX124: ООО "Северсбыт" | DY124: 8904076329 | DZ124: 890401001 | EA124: 1148904003181 | EB124: 2014-10-16 | EF124: Нерегулируемый сбыт | EG124: /Электроэнергетика/Сбыт ЭЭ/Нерегулируемый сбыт | EI124: Y
DR125: Тюменская область | DW125: 31691831 | DX125: ООО "Сибирская сбытовая компания" | DY125: 7203439614 | DZ125: 720301001 | EA125: 1187232000559 | EB125: 2023-09-01 | EF125: Нерегулируемый сбыт | EG125: /Электроэнергетика/Сбыт ЭЭ/Нерегулируемый сбыт | EI125: Y
DR126: Тюменская область | DW126: 26522772 | DX126: ООО "Сибэнергокомплектмонтаж" | DY126: 8602253660 | DZ126: 860201001 | EA126: 1158602000534 | EF126: РСО | EG126: /Электроэнергетика/Передача ЭЭ/РСО | EI126: Y
DR127: Тюменская область | DW127: 31077456 | DX127: ООО "Соровскнефть" | DY127: 7202170632 | DZ127: 720301001 | EA127: 1077203059548 | EB127: 2007-11-30 | EF127: Некомбинированная выработка | EG127: /Электроэнергетика/Производство ЭЭ/Некомбинированная выработка | EI127: Y
DR128: Тюменская область | DW128: 26460785 | DX128: ООО "Статус" | DY128: 7202153919 | DZ128: 720401001 | EA128: 1067203357693 | EF128: РСО | EG128: /Электроэнергетика/Передача ЭЭ/РСО | EI128: Y
DR129: Тюменская область | DW129: 28130004 | DX129: ООО "Строительно-промышленный комбинат" | DY129: 8603214825 | DZ129: 860301001 | EA129: 1158603002030 | EF129: РСО | EG129: /Электроэнергетика/Передача ЭЭ/РСО | EI129: Y
DR130: Тюменская область | DW130: 26522796 | DX130: ООО "Сургутские городские электрические сети" | DY130: 8602015464 | DZ130: 860201001 | EA130: 1068602153773 | EB130: 2006-07-27 | EF130: РСО | EG130: /Электроэнергетика/Передача ЭЭ/РСО | EI130: Y
DR131: Тюменская область | DW131: 26535194 | DX131: ООО "Сургутэнергосбыт" | DY131: 8602153048 | DZ131: 785150001 | EA131: 1098602003510 | EF131: Нерегулируемый сбыт | EG131: /Электроэнергетика/Сбыт ЭЭ/Нерегулируемый сбыт | EI131: Y
DR132: Тюменская область | DW132: 30908755 | DX132: ООО "ТРАНССЕТЬ" | DY132: 7203395220 | DZ132: 720301001 | EA132: 1167232081290 | EB132: 2016-09-07 | EF132: РСО | EG132: /Электроэнергетика/Передача ЭЭ/РСО | EI132: Y
DR133: Тюменская область | DW133: 31297392 | DX133: ООО "ТРОЯН" | DY133: 7203433010 | DZ133: 720301001 | EA133: 1177232030986 | EB133: 2017-10-25 | EF133: Нерегулируемый сбыт | EG133: /Электроэнергетика/Сбыт ЭЭ/Нерегулируемый сбыт | EI133: Y
DR134: Тюменская область | DW134: 26320033 | DX134: ООО "Тобольскпромэнергосеть" | DY134: 7206032440 | DZ134: 720601001 | EA134: 1067206045873 | EB134: 2006-03-30 | EF134: РСО | EG134: /Электроэнергетика/Передача ЭЭ/РСО | EI134: Y
DR135: Тюменская область | DW135: 26497668 | DX135: ООО "Транснефтьэнерго" | DY135: 7703552167 | DZ135: 772301001 | EA135: 1057747096990 | EB135: 2009-07-01 | EF135: Нерегулируемый сбыт | EG135: /Электроэнергетика/Сбыт ЭЭ/Нерегулируемый сбыт | EI135: Y
DR136: Тюменская область | DW136: 31509022 | DX136: ООО "ТюменьСеть" | DY136: 7203508113 | DZ136: 720301001 | EA136: 1207200014230 | EB136: 2020-09-10 | EF136: РСО | EG136: /Электроэнергетика/Передача ЭЭ/РСО | EI136: Y
DR137: Тюменская область | DW137: 26320035 | DX137: ООО "Управляющая компания - Тюменские моторостроители" | DY137: 7203179282 | DZ137: 720301001 | EA137: 1067203328070 | EF137: РСО | EG137: /Электроэнергетика/Передача ЭЭ/РСО | EI137: Y
DR138: Тюменская область | DW138: 31304544 | DX138: ООО "Черкизово ТЭК" | DY138: 7714974474 | DZ138: 771001001 | EA138: 1177746151978 | EF138: Нерегулируемый сбыт | EG138: /Электроэнергетика/Сбыт ЭЭ/Нерегулируемый сбыт | EI138: Y
DR139: Тюменская область | DW139: 31509054 | DX139: ООО "ЭЛЕКОНТ" | DY139: 7224046773 | DZ139: 722401001 | EA139: 1127232000488 | EB139: 2012-01-12 | EF139: РСО | EG139: /Электроэнергетика/Передача ЭЭ/РСО | EI139: Y
DR140: Тюменская область | DW140: 28943648 | DX140: ООО "ЭСК "Независимость" | DY140: 7701383354 | DZ140: 770801001 | EA140: 1147746008850 | EB140: 2015-03-25 | EF140: Нерегулируемый сбыт | EG140: /Электроэнергетика/Сбыт ЭЭ/Нерегулируемый сбыт | EI140: Y
DR141: Тюменская область | DW141: 26460745 | DX141: ООО "ЭлектроСпецСтрой" | DY141: 7224038532 | DZ141: 720301001 | EA141: 1087232010656 | EB141: 2008-03-14 | EF141: РСО | EG141: /Электроэнергетика/Передача ЭЭ/РСО | EI141: Y
DR142: Тюменская область | DW142: 26639461 | DX142: ООО "Энерго-Лидер" | DY142: 7204162073 | DZ142: 720401001 | EA142: 1107232041014 | EB142: 2010-11-25 | EF142: РСО | EG142: /Электроэнергетика/Передача ЭЭ/РСО | EI142: Y
DR143: Тюменская область | DW143: 31229980 | DX143: ООО "Энергокомплекс" | DY143: 7203394515 | DZ143: 720301001 | EA143: 1167232080465 | EB143: 2016-08-30 | EF143: Нерегулируемый сбыт | EG143: /Электроэнергетика/Сбыт ЭЭ/Нерегулируемый сбыт | EI143: Y
DR144: Тюменская область | DW144: 26360227 | DX144: ООО "Энергонефть Томск" | DY144: 7022010799 | DZ144: 702201001 | EA144: 1027001619369 | EB144: 2002-10-22 | EF144: РСО | EG144: /Электроэнергетика/Передача ЭЭ/РСО | EI144: Y
DR145: Тюменская область | DW145: 26800952 | DX145: ООО "Энергопрогноз" | DY145: 3328454924 | DZ145: 332801001 | EA145: 1073328008093 | EF145: Нерегулируемый сбыт | EG145: /Электроэнергетика/Сбыт ЭЭ/Нерегулируемый сбыт | EI145: Y
DR146: Тюменская область | DW146: 28494405 | DX146: ООО "Энергосистема" | DY146: 7715887873 | DZ146: 770201001 | EA146: 1117746835601 | EF146: Нерегулируемый сбыт | EG146: /Электроэнергетика/Сбыт ЭЭ/Нерегулируемый сбыт | EI146: Y
DR147: Тюменская область | DW147: 26576132 | DX147: ООО «Газпром переработка» в зоне деятельности филиала Завод по стабилизации конденсата имени В.С. Черномырдина | DY147: 1102054991 | DZ147: 860201001 | EA147: 1071102001651 | EF147: РСО | EG147: /Электроэнергетика/Передача ЭЭ/РСО | EI147: Y
DR148: Тюменская область | DW148: 26522800 | DX148: ООО «Газпром энерго» в зоне деятельности Сургутского филиала Общества с ограниченной ответственностью «Газпром энерго» | DY148: 7736186950 | DZ148: 860202001 | EA148: 1027739841370 | EB148: 2005-10-03 | EF148: РСО | EG148: /Электроэнергетика/Передача ЭЭ/РСО | EI148: Y
DR149: Тюменская область | DW149: 31044736 | DX149: ООО «ЭЛЕК» | DY149: 8602281868 | DZ149: 860201001 | EA149: 1178617021880 | EB149: 2017-11-08 | EF149: РСО | EG149: /Электроэнергетика/Передача ЭЭ/РСО | EI149: Y
DR150: Тюменская область | DW150: 31077469 | DX150: ООО РУСГАЗСЕРВИС | DY150: 8601041542 | DZ150: 860101001 | EA150: 1108601001497 | EB150: 2010-07-07 | EF150: Некомбинированная выработка | EG150: /Электроэнергетика/Производство ЭЭ/Некомбинированная выработка | EI150: Y
DR151: Тюменская область | DW151: 28856547 | DX151: ООО СК "Восток" | DY151: 7203304688 | DZ151: 720301001 | EA151: 1147232006910 | EB151: 2014-02-10 | EF151: РСО | EG151: /Электроэнергетика/Передача ЭЭ/РСО | EI151: Y
DR152: Тюменская область | DW152: 31618899 | DX152: ООО ЭСК Новая энергия | DY152: 7453333057 | DZ152: 745301001 | EA152: 1197456057370 | EF152: Нерегулируемый сбыт | EG152: /Электроэнергетика/Сбыт ЭЭ/Нерегулируемый сбыт | EI152: Y
DR153: Тюменская область | DW153: 26319010 | DX153: ООО Энергосбытовая компания "Аган",г.Радужный | DY153: 8609018048 | DZ153: 860901001 | EA153: 1048603250410 | EF153: Нерегулируемый сбыт | EG153: /Электроэнергетика/Сбыт ЭЭ/Нерегулируемый сбыт | EI153: Y
DR154: Тюменская область | DW154: 31289532 | DX154: Общество с ограниченной ответственностью «ЛУКОЙЛ-ЭНЕРГОСЕТИ» | DY154: 5260230051 | DZ154: 775050001 | EA154: 1088607000217 | EF154: Нерегулируемый сбыт | EG154: /Электроэнергетика/Сбыт ЭЭ/Нерегулируемый сбыт | EI154: Y
DR155: Тюменская область | DW155: 27604395 | DX155: Общество с ограниченной ответственностью «Энергосбытовая компания» | DY155: 0275075272 | DZ155: 027501001 | EA155: 1110280052651 | EF155: Нерегулируемый сбыт | EG155: /Электроэнергетика/Сбыт ЭЭ/Нерегулируемый сбыт | EI155: Y
DR156: Тюменская область | DW156: 28140166 | DX156: ПАО "Передвижная энергетика" | DY156: 7719019846 | DZ156: 890101001 | EA156: 1027700465418 | EB156: 2002-11-28 | EF156: Комбинированная выработка | EG156: /Электроэнергетика/Производство ЭЭ/Комбинированная выработка | EI156: Y
DR157: Тюменская область | DW157: 26535149 | DX157: ПАО "Передвижная энергетика" филиал "ПЭС Казым" | DY157: 7719019846 | DZ157: 861102001 | EA157: 1027700465418 | EF157: Некомбинированная выработка | EG157: /Электроэнергетика/Производство ЭЭ/Некомбинированная выработка | EI157: Y
DR158: Тюменская область | DW158: 28435937 | DX158: ПАО "Передвижная энергетика" филиал "ПЭС Уренгой" | DY158: 7719019846 | DZ158: 890402001 | EA158: 1027700465418 | EF158: Некомбинированная выработка | EG158: /Электроэнергетика/Производство ЭЭ/Некомбинированная выработка | EI158: Y
DR159: Тюменская область | DW159: 26423513 | DX159: ПАО "Сургутнефтегаз" | DY159: 8602060555 | DZ159: 997250001 | EA159: 1028600584540 | EB159: 2002-09-18 | EF159: РСО :: Некомбинированная выработка | EG159: /Электроэнергетика/Передача ЭЭ/РСО :: /Электроэнергетика/Производство ЭЭ/Некомбинированная выработка | EI159: Y
DR160: Тюменская область | DW160: 26832761 | DX160: ПАО "ФСК - Россети" | DY160: 4716016979 | DZ160: 773101001 | EA160: 1024701893336 | EF160: РСО | EG160: /Электроэнергетика/Передача ЭЭ/РСО | EI160: Y
DR161: Тюменская область | DW161: 27954259 | DX161: ПАО "ФСК - Россети" | DY161: 4716016979 | DZ161: 997450001 | EA161: 1024701893336 | EF161: РСО | EG161: /Электроэнергетика/Передача ЭЭ/РСО | EI161: Y
DR162: Тюменская область | DW162: 26551662 | DX162: ПАО "Форвард Энерго" | DY162: 7203162698 | DZ162: 997150001 | EA162: 1058602102437 | EB162: 2006-12-01 | EF162: Нерегулируемый сбыт | EG162: /Электроэнергетика/Сбыт ЭЭ/Нерегулируемый сбыт | EI162: Y
DR163: Тюменская область | DW163: 26867519 | DX163: ПАО "Форвард Энерго" | DY163: 7203162698 | DZ163: 745301001 | EA163: 1058602102437 | EF163: Комбинированная выработка | EG163: /Электроэнергетика/Производство ЭЭ/Комбинированная выработка | EI163: Y
DR164: Тюменская область | DW164: 26551662 | DX164: ПАО "Форвард Энерго" | DY164: 7203162698 | DZ164: 997150001 | EA164: 1058602102437 | EB164: 2006-12-01 | EF164: Комбинированная выработка | EG164: /Электроэнергетика/Производство ЭЭ/Комбинированная выработка | EI164: Y
DR165: Тюменская область | DW165: 26867636 | DX165: ПАО "Форвард Энерго" (Няганская ГРЭС) | DY165: 7203162698 | DZ165: 861002001 | EA165: 1058602102437 | EB165: 2011-07-15 | EF165: Некомбинированная выработка | EG165: /Электроэнергетика/Производство ЭЭ/Некомбинированная выработка | EI165: Y
DR166: Тюменская область | DW166: 26867527 | DX166: ПАО "Форвард Энерго" (Тобольская ТЭЦ) | DY166: 7203162698 | DZ166: 720602001 | EA166: 1058602102437 | EB166: 2011-07-21 | EF166: Комбинированная выработка | EG166: /Электроэнергетика/Производство ЭЭ/Комбинированная выработка | EI166: Y
DR167: Тюменская область | DW167: 26867627 | DX167: ПАО "Форвард Энерго" (Тюменская ТЭЦ-1) | DY167: 7203162698 | DZ167: 720302001 | EA167: 1058602102437 | EB167: 2011-07-15 | EF167: Комбинированная выработка | EG167: /Электроэнергетика/Производство ЭЭ/Комбинированная выработка | EI167: Y
DR168: Тюменская область | DW168: 27296398 | DX168: ПАО "Юнипро" | DY168: 8602067092 | DZ168: 860201001 | EA168: 1058602056985 | EF168: Комбинированная выработка :: Некомбинированная выработка | EG168: /Электроэнергетика/Производство ЭЭ/Комбинированная выработка :: /Электроэнергетика/Производство ЭЭ/Некомбинированная выработка | EI168: Y
DR169: Тюменская область | DW169: 26318617 | DX169: ПИИ ОАО "Газтурбосервис" | DY169: 7203078728 | DZ169: 720301001 | EA169: 1027200817852 | EF169: Некомбинированная выработка | EG169: /Электроэнергетика/Производство ЭЭ/Некомбинированная выработка | EI169: Y
DR170: Тюменская область | DW170: 28145914 | DX170: Публичное акционерное общество «Славнефть-Мегионнефтегаз» | DY170: 8605003932 | DZ170: 860501001 | EA170: 1028601354088 | EF170: Некомбинированная выработка | EG170: /Электроэнергетика/Производство ЭЭ/Некомбинированная выработка | EI170: Y
DR171: Тюменская область | DW171: 26319011 | DX171: РЭУ ОАО "Запсибгазпром" | DY171: 7203001796 | DZ171: 720345001 | EA171: 1027200821196 | EF171: Нерегулируемый сбыт | EG171: /Электроэнергетика/Сбыт ЭЭ/Нерегулируемый сбыт | EI171: Y
DR172: Тюменская область | DW172: 31652178 | DX172: Свердловский филиал ООО "Гарант Плюс" | DY172: 7709756784 | DZ172: 667043001 | EA172: 1077759934284 | EF172: Нерегулируемый сбыт | EG172: /Электроэнергетика/Сбыт ЭЭ/Нерегулируемый сбыт | EI172: Y
DR173: Тюменская область | DW173: 30906887 | DX173: Свердловский филиал ООО "ЕЭС-Гарант" | DY173: 5024173259 | DZ173: 667043001 | EA173: 1175024009918 | EF173: Нерегулируемый сбыт | EG173: /Электроэнергетика/Сбыт ЭЭ/Нерегулируемый сбыт | EI173: Y
DR174: Тюменская область | DW174: 26754796 | DX174: Северная дирекция по энергообеспечению - структурное подразделение Трансэнерго - филиала ОАО "Российские железные дороги" | DY174: 7708503727 | DZ174: 760445013 | EA174: 1037739877295 | EF174: РСО | EG174: /Электроэнергетика/Передача ЭЭ/РСО | EI174: Y
DR175: Тюменская область | DW175: 26405743 | DX175: Уренгойский филиал ООО "Газпром энерго" | DY175: 7736186950 | DZ175: 890402001 | EA175: 1027739841370 | EB175: 2005-10-03 | EF175: РСО | EG175: /Электроэнергетика/Передача ЭЭ/РСО | EI175: Y
DR176: Тюменская область | DW176: 26375268 | DX176: ФБУ Центр реабилитации СФР "Тараскуль" | DY176: 7204013642 | DZ176: 720301001 | EA176: 1027200784654 | EF176: РСО | EG176: /Электроэнергетика/Передача ЭЭ/РСО | EI176: Y
DR177: Тюменская область | DW177: 26522992 | DX177: Филиал "Уренгойская ГРЭС" АО "Интер РАО - Электрогенерация" | DY177: 7704784450 | DZ177: 890443001 | EA177: 1117746460358 | EB177: 2011-06-15 | EF177: Комбинированная выработка | EG177: /Электроэнергетика/Производство ЭЭ/Комбинированная выработка | EI177: Y
DR178: Тюменская область | DW178: 26519983 | DX178: Филиал ПАО "ОГК-2"- Сургутская ГРЭС-1 | DY178: 2607018122 | DZ178: 860202001 | EA178: 1052600002180 | EF178: Некомбинированная выработка | EG178: /Электроэнергетика/Производство ЭЭ/Некомбинированная выработка | EI178: Y
DR179: Тюменская область | DW179: 26423553 | DX179: филиал "Сургутская ГРЭС-2" ПАО "Юнипро" | DY179: 8602067092 | DZ179: 860202001 | EA179: 1058602056985 | EB179: 2004-03-04 | EF179: Комбинированная выработка | EG179: /Электроэнергетика/Производство ЭЭ/Комбинированная выработка | EI179: Y
DR180: Тюменская область | DW180: 26576128 | DX180: филиал ОАО "РЖД" - Свердловская ж.д. (Сургутская дистанция) | DY180: 7708503727 | DZ180: 860245012 | EA180: 1037739877295 | EF180: РСО | EG180: /Электроэнергетика/Передача ЭЭ/РСО | EI180: Y
DR181: Тюменская область | DW181: 26794979 | DX181: филиал ОАО "РЖД"- Свердловская ж.д. (Тюменская дистанция) | DY181: 7708503727 | DZ181: 720445015 | EA181: 1037739877295 | EF181: РСО | EG181: /Электроэнергетика/Передача ЭЭ/РСО | EI181: Y

Sheet REESTR_MO (hidden)
A1: МР | B1: МО | C1: ОКТМО | D1: Тип МО | E1: Муниципальный район | F1: Имя диапазона
A2: Абатский муниципальный район | B2: Абатский муниципальный район | C2: 71603000 | D2: муниципальный район | E2: Абатский муниципальный район | F2: MO_LIST_1
A3: Абатский муниципальный район | B3: Абатское | C3: 71603402 | D3: сельское поселение | E3: Армизонский муниципальный район | F3: MO_LIST_2
A4: Абатский муниципальный район | B4: Банниковское | C4: 71603410 | D4: сельское поселение | E4: Аромашевский муниципальный район | F4: MO_LIST_3
A5: Абатский муниципальный район | B5: Болдыревское | C5: 71603415 | D5: сельское поселение | E5: Бердюжский муниципальный район | F5: MO_LIST_4
A6: Абатский муниципальный район | B6: Коневское | C6: 71603430 | D6: сельское поселение | E6: Вагайский муниципальный район | F6: MO_LIST_5
A7: Абатский муниципальный район | B7: Ленинское | C7: 71603435 | D7: сельское поселение | E7: Викуловский муниципальный район | F7: MO_LIST_6
A8: Абатский муниципальный район | B8: Майское | C8: 71603440 | D8: сельское поселение | E8: Голышмановский | F8: MO_LIST_7
A9: Абатский муниципальный район | B9: Назаровское | C9: 71603445 | D9: сельское поселение | E9: Город Ишим | F9: MO_LIST_8
A10: Абатский муниципальный район | B10: Ощепковское | C10: 71603450 | D10: сельское поселение | E10: Исетский муниципальный район | F10: MO_LIST_9
A11: Абатский муниципальный район | B11: Партизанское | C11: 71603455 | D11: сельское поселение | E11: Ишимский муниципальный район | F11: MO_LIST_10
A12: Абатский муниципальный район | B12: Тушнолобовское | C12: 71603460 | D12: сельское поселение | E12: Казанский муниципальный район | F12: MO_LIST_11
A13: Абатский муниципальный район | B13: Шевыринское | C13: 71603465 | D13: сельское поселение | E13: Нижнетавдинский муниципальный район | F13: MO_LIST_12
A14: Армизонский муниципальный район | B14: Армизонский муниципальный район | C14: 71605000 | D14: муниципальный район | E14: Омутинский муниципальный район | F14: MO_LIST_13
A15: Армизонский муниципальный район | B15: Армизонское | C15: 71605405 | D15: сельское поселение | E15: Сладковский муниципальный район | F15: MO_LIST_14
A16: Армизонский муниципальный район | B16: Ивановское | C16: 71605410 | D16: сельское поселение | E16: Сорокинский муниципальный район | F16: MO_LIST_15
A17: Армизонский муниципальный район | B17: Калмакское | C17: 71605415 | D17: сельское поселение | E17: Тобольский муниципальный район | F17: MO_LIST_16
A18: Армизонский муниципальный район | B18: Капралихинское | C18: 71605420 | D18: сельское поселение | E18: Тюменский муниципальный район | F18: MO_LIST_17
A19: Армизонский муниципальный район | B19: Красноорловское | C19: 71605425 | D19: сельское поселение | E19: Уватский муниципальный район | F19: MO_LIST_18
A20: Армизонский муниципальный район | B20: Орловское | C20: 71605430 | D20: сельское поселение | E20: Упоровский муниципальный район | F20: MO_LIST_19
A21: Армизонский муниципальный район | B21: Прохоровское | C21: 71605435 | D21: сельское поселение | E21: Юргинский муниципальный район | F21: MO_LIST_20
A22: Армизонский муниципальный район | B22: Раздольское | C22: 71605440 | D22: сельское поселение | E22: Ялуторовский муниципальный район | F22: MO_LIST_21
A23: Армизонский муниципальный район | B23: Южно-Дубровинское | C23: 71605445 | D23: сельское поселение | E23: Ярковский муниципальный район | F23: MO_LIST_22
A24: Аромашевский муниципальный район | B24: Аромашевский муниципальный район | C24: 71607000 | D24: муниципальный район | E24: город Заводоуковск | F24: MO_LIST_23
A25: Аромашевский муниципальный район | B25: Аромашевское | C25: 71607405 | D25: сельское поселение | E25: город Тобольск | F25: MO_LIST_24
A26: Аромашевский муниципальный район | B26: Кармацкое | C26: 71607410 | D26: сельское поселение | E26: город Тюмень | F26: MO_LIST_25
A27: Аромашевский муниципальный район | B27: Кротовское | C27: 71607415 | D27: сельское поселение | E27: город Ялуторовск | F27: MO_LIST_26
A28: Аромашевский муниципальный район | B28: Малиновское | C28: 71607420 | D28: сельское поселение
A29: Аромашевский муниципальный район | B29: Малоскарединское | C29: 71607425 | D29: сельское поселение
A30: Аромашевский муниципальный район | B30: Новоберезовское | C30: 71607430 | D30: сельское поселение
A31: Аромашевский муниципальный район | B31: Новопетровское | C31: 71607435 | D31: сельское поселение
A32: Аромашевский муниципальный район | B32: Русаковское | C32: 71607440 | D32: сельское поселение
A33: Аромашевский муниципальный район | B33: Слободчиковское | C33: 71607445 | D33: сельское поселение
A34: Аромашевский муниципальный район | B34: Сорочкинское | C34: 71607450 | D34: сельское поселение
A35: Аромашевский муниципальный район | B35: Юрминское | C35: 71607455 | D35: сельское поселение
A36: Бердюжский муниципальный район | B36: Бердюжский муниципальный район | C36: 71610000 | D36: муниципальный район
A37: Бердюжский муниципальный район | B37: Бердюжское | C37: 71610410 | D37: сельское поселение
A38: Бердюжский муниципальный район | B38: Зарословское | C38: 71610420 | D38: сельское поселение
A39: Бердюжский муниципальный район | B39: Истошинское | C39: 71610430 | D39: сельское поселение
A40: Бердюжский муниципальный район | B40: Мелехинское | C40: 71610440 | D40: сельское поселение
A41: Бердюжский муниципальный район | B41: Окуневское | C41: 71610450 | D41: сельское поселение
A42: Бердюжский муниципальный район | B42: Пегановское | C42: 71610460 | D42: сельское поселение
A43: Бердюжский муниципальный район | B43: Полозаозерское | C43: 71610470 | D43: сельское поселение
A44: Бердюжский муниципальный район | B44: Рямовское | C44: 71610474 | D44: сельское поселение
A45: Бердюжский муниципальный район | B45: Уктузское | C45: 71610480 | D45: сельское поселение
A46: Вагайский муниципальный район | B46: Аксурское | C46: 71613404 | D46: сельское поселение
A47: Вагайский муниципальный район | B47: Бегишевское | C47: 71613412 | D47: сельское поселение
A48: Вагайский муниципальный район | B48: Вагайский муниципальный район | C48: 71613000 | D48: муниципальный район
A49: Вагайский муниципальный район | B49: Вершинское | C49: 71613416 | D49: сельское поселение
A50: Вагайский муниципальный район | B50: Дубровинское | C50: 71613428 | D50: сельское поселение
A51: Вагайский муниципальный район | B51: Зареченское | C51: 71613424 | D51: сельское поселение
A52: Вагайский муниципальный район | B52: Казанское | C52: 71613456 | D52: сельское поселение
A53: Вагайский муниципальный район | B53: Карагайское | C53: 71613432 | D53: сельское поселение
A54: Вагайский муниципальный район | B54: Касьяновское | C54: 71613436 | D54: сельское поселение
A55: Вагайский муниципальный район | B55: Куларовское | C55: 71613444 | D55: сельское поселение
A56: Вагайский муниципальный район | B56: Первовагайское | C56: 71613460 | D56: сельское поселение
A57: Вагайский муниципальный район | B57: Первомайское | C57: 71613464 | D57: сельское поселение
A58: Вагайский муниципальный район | B58: Птицкое | C58: 71613468 | D58: сельское поселение
A59: Вагайский муниципальный район | B59: Супринское | C59: 71613472 | D59: сельское поселение
A60: Вагайский муниципальный район | B60: Тукузское | C60: 71613476 | D60: сельское поселение
A61: Вагайский муниципальный район | B61: Ушаковское | C61: 71613480 | D61: сельское поселение
A62: Вагайский муниципальный район | B62: Фатеевское | C62: 71613484 | D62: сельское поселение
A63: Вагайский муниципальный район | B63: Черноковское | C63: 71613488 | D63: сельское поселение
A64: Вагайский муниципальный район | B64: Шестовское | C64: 71613492 | D64: сельское поселение
A65: Вагайский муниципальный район | B65: Шишкинское | C65: 71613408 | D65: сельское поселение
A66: Викуловский муниципальный район | B66: Балаганское | C66: 71615404 | D66: сельское поселение
A67: Викуловский муниципальный район | B67: Березинское | C67: 71615408 | D67: сельское поселение
A68: Викуловский муниципальный район | B68: Викуловский муниципальный район | C68: 71615000 | D68: муниципальный район
A69: Викуловский муниципальный район | B69: Викуловское | C69: 71615412 | D69: сельское поселение
A70: Викуловский муниципальный район | B70: Ермаковское | C70: 71615416 | D70: сельское поселение
A71: Викуловский муниципальный район | B71: Калининское | C71: 71615420 | D71: сельское поселение
A72: Викуловский муниципальный район | B72: Каргалинское | C72: 71615424 | D72: сельское поселение
A73: Викуловский муниципальный район | B73: Коточиговское | C73: 71615428 | D73: сельское поселение
A74: Викуловский муниципальный район | B74: Нововяткинское | C74: 71615432 | D74: сельское поселение
A75: Викуловский муниципальный район | B75: Озернинское | C75: 71615436 | D75: сельское поселение
A76: Викуловский муниципальный район | B76: Поддубровинское | C76: 71615440 | D76: сельское поселение
A77: Викуловский муниципальный район | B77: Рябовское | C77: 71615444 | D77: сельское поселение
A78: Викуловский муниципальный район | B78: Сартамское | C78: 71615448 | D78: сельское поселение
A79: Викуловский муниципальный район | B79: Скрипкинское | C79: 71615452 | D79: сельское поселение
A80: Викуловский муниципальный район | B80: Чуртанское | C80: 71615456 | D80: сельское поселение
A81: Голышмановский | B81: Голышмановский | C81: 71702000 | D81: городской округ
A82: Город Ишим | B82: Город Ишим | C82: 71705000 | D82: городской округ
A83: Исетский муниципальный район | B83: Архангельское | C83: 71624403 | D83: сельское поселение
A84: Исетский муниципальный район | B84: Бархатовское | C84: 71624405 | D84: сельское поселение
A85: Исетский муниципальный район | B85: Бобылевское | C85: 71624410 | D85: сельское поселение
A86: Исетский муниципальный район | B86: Верхнебешкильское | C86: 71624415 | D86: сельское поселение
A87: Исетский муниципальный район | B87: Верхнеингальское | C87: 71624417 | D87: сельское поселение
A88: Исетский муниципальный район | B88: Денисовское | C88: 71624420 | D88: сельское поселение
A89: Исетский муниципальный район | B89: Исетский муниципальный район | C89: 71624000 | D89: муниципальный район
A90: Исетский муниципальный район | B90: Исетское | C90: 71624425 | D90: сельское поселение
A91: Исетский муниципальный район | B91: Кировское | C91: 71624427 | D91: сельское поселение
A92: Исетский муниципальный район | B92: Коммунаровское | C92: 71624430 | D92: сельское поселение
A93: Исетский муниципальный район | B93: Красновское | C93: 71624435 | D93: сельское поселение
A94: Исетский муниципальный район | B94: Мининское | C94: 71624440 | D94: сельское поселение
A95: Исетский муниципальный район | B95: Рассветовское | C95: 71624445 | D95: сельское поселение
A96: Исетский муниципальный район | B96: Рафайловское | C96: 71624450 | D96: сельское поселение
A97: Исетский муниципальный район | B97: Слободобешкильское | C97: 71624455 | D97: сельское поселение
A98: Исетский муниципальный район | B98: Солобоевское | C98: 71624460 | D98: сельское поселение
A99: Исетский муниципальный район | B99: Шороховское | C99: 71624465 | D99: сельское поселение
A100: Ишимский муниципальный район | B100: Боровское | C100: 71626404 | D100: сельское поселение
A101: Ишимский муниципальный район | B101: Бутусовское | C101: 71626408 | D101: сельское поселение
A102: Ишимский муниципальный район | B102: Второпесьяновское | C102: 71626412 | D102: сельское поселение
A103: Ишимский муниципальный район | B103: Гагаринское | C103: 71626416 | D103: сельское поселение
A104: Ишимский муниципальный район | B104: Десятовское | C104: 71626420 | D104: сельское поселение
A105: Ишимский муниципальный район | B105: Дымковское | C105: 71626424 | D105: сельское поселение
A106: Ишимский муниципальный район | B106: Ишимский муниципальный район | C106: 71626000 | D106: муниципальный район
A107: Ишимский муниципальный район | B107: Карасульское | C107: 71626428 | D107: сельское поселение
A108: Ишимский муниципальный район | B108: Клепиковское | C108: 71626432 | D108: сельское поселение
A109: Ишимский муниципальный район | B109: Ларихинское | C109: 71626436 | D109: сельское поселение
A110: Ишимский муниципальный район | B110: Мизоновское | C110: 71626440 | D110: сельское поселение
A111: Ишимский муниципальный район | B111: Неволинское | C111: 71626442 | D111: сельское поселение
A112: Ишимский муниципальный район | B112: Новолоктинское | C112: 71626444 | D112: сельское поселение
A113: Ишимский муниципальный район | B113: Новотравнинское | C113: 71626448 | D113: сельское поселение
A114: Ишимский муниципальный район | B114: Пахомовское | C114: 71626452 | D114: сельское поселение
A115: Ишимский муниципальный район | B115: Первопесьяновское | C115: 71626456 | D115: сельское поселение
A116: Ишимский муниципальный район | B116: Плешковское | C116: 71626460 | D116: сельское поселение
A117: Ишимский муниципальный район | B117: Прокуткинское | C117: 71626464 | D117: сельское поселение
A118: Ишимский муниципальный район | B118: Равнецкое | C118: 71626468 | D118: сельское поселение
A119: Ишимский муниципальный район | B119: Стрехнинское | C119: 71626472 | D119: сельское поселение
A120: Ишимский муниципальный район | B120: Тоболовское | C120: 71626476 | D120: сельское поселение
A121: Ишимский муниципальный район | B121: Черемшанское | C121: 71626484 | D121: сельское поселение
A122: Ишимский муниципальный район | B122: Шаблыкинское | C122: 71626488 | D122: сельское поселение
A123: Казанский муниципальный район | B123: Афонькинское | C123: 71630405 | D123: сельское поселение
A124: Казанский муниципальный район | B124: Большеченчерское | C124: 71630410 | D124: сельское поселение
A125: Казанский муниципальный район | B125: Большеярковское | C125: 71630415 | D125: сельское поселение
A126: Казанский муниципальный район | B126: Гагарьевское | C126: 71630420 | D126: сельское поселение
A127: Казанский муниципальный район | B127: Дубынское | C127: 71630425 | D127: сельское поселение
A128: Казанский муниципальный район | B128: Ильинское | C128: 71630430 | D128: сельское поселение
A129: Казанский муниципальный район | B129: Казанский муниципальный район | C129: 71630000 | D129: муниципальный район
A130: Казанский муниципальный район | B130: Казанское | C130: 71630432 | D130: сельское поселение
A131: Казанский муниципальный район | B131: Огневское | C131: 71630435 | D131: сельское поселение
A132: Казанский муниципальный район | B132: Пешневское | C132: 71630440 | D132: сельское поселение
A133: Казанский муниципальный район | B133: Смирновское | C133: 71630445 | D133: сельское поселение
A134: Казанский муниципальный район | B134: Челюскинское | C134: 71630450 | D134: сельское поселение
A135: Казанский муниципальный район | B135: Чирковское | C135: 71630452 | D135: сельское поселение
A136: Казанский муниципальный район | B136: Яровское | C136: 71630455 | D136: сельское поселение
A137: Нижнетавдинский муниципальный район | B137: Андрюшинское | C137: 71632404 | D137: сельское поселение
A138: Нижнетавдинский муниципальный район | B138: Антипинское | C138: 71632408 | D138: сельское поселение
A139: Нижнетавдинский муниципальный район | B139: Березовское | C139: 71632412 | D139: сельское поселение
A140: Нижнетавдинский муниципальный район | B140: Бухтальское | C140: 71632416 | D140: сельское поселение
A141: Нижнетавдинский муниципальный район | B141: Велижанское | C141: 71632420 | D141: сельское поселение
A142: Нижнетавдинский муниципальный район | B142: Искинское | C142: 71632428 | D142: сельское поселение
A143: Нижнетавдинский муниципальный район | B143: Канашское | C143: 71632432 | D143: сельское поселение
A144: Нижнетавдинский муниципальный район | B144: Ключевское | C144: 71632440 | D144: сельское поселение
A145: Нижнетавдинский муниципальный район | B145: Миясское | C145: 71632448 | D145: сельское поселение
A146: Нижнетавдинский муниципальный район | B146: Нижнетавдинский муниципальный район | C146: 71632000 | D146: муниципальный район
A147: Нижнетавдинский муниципальный район | B147: Нижнетавдинское | C147: 71632450 | D147: сельское поселение
A148: Нижнетавдинский муниципальный район | B148: Новоникольское | C148: 71632452 | D148: сельское поселение
A149: Нижнетавдинский муниципальный район | B149: Новотроицкое | C149: 71632456 | D149: сельское поселение
A150: Нижнетавдинский муниципальный район | B150: Тавдинское | C150: 71632469 | D150: сельское поселение
A151: Нижнетавдинский муниципальный район | B151: Тарманское | C151: 71632472 | D151: сельское поселение
A152: Нижнетавдинский муниципальный район | B152: Тюневское | C152: 71632475 | D152: сельское поселение
A153: Нижнетавдинский муниципальный район | B153: Черепановское | C153: 71632478 | D153: сельское поселение
A154: Нижнетавдинский муниципальный район | B154: Чугунаевское | C154: 71632482 | D154: сельское поселение
A155: Омутинский муниципальный район | B155: Большекрасноярское | C155: 71634411 | D155: сельское поселение
A156: Омутинский муниципальный район | B156: Вагайское | C156: 71634415 | D156: сельское поселение
A157: Омутинский муниципальный район | B157: Журавлевское | C157: 71634422 | D157: сельское поселение
A158: Омутинский муниципальный район | B158: Окуневское | C158: 71634444 | D158: сельское поселение
A159: Омутинский муниципальный район | B159: Омутинский муниципальный район | C159: 71634000 | D159: муниципальный район
A160: Омутинский муниципальный район | B160: Омутинское | C160: 71634448 | D160: сельское поселение
A161: Омутинский муниципальный район | B161: Ситниковское | C161: 71634455 | D161: сельское поселение
A162: Омутинский муниципальный район | B162: Шабановское | C162: 71634466 | D162: сельское поселение
A163: Омутинский муниципальный район | B163: Южно-Плетневское | C163: 71634477 | D163: сельское поселение
A164: Сладковский муниципальный район | B164: Александровское | C164: 71636405 | D164: сельское поселение
A165: Сладковский муниципальный район | B165: Лопазновское | C165: 71636410 | D165: сельское поселение
A166: Сладковский муниципальный район | B166: Майское | C166: 71636415 | D166: сельское поселение
A167: Сладковский муниципальный район | B167: Маслянское | C167: 71636420 | D167: сельское поселение
A168: Сладковский муниципальный район | B168: Менжинское | C168: 71636425 | D168: сельское поселение
A169: Сладковский муниципальный район | B169: Никулинское | C169: 71636430 | D169: сельское поселение
A170: Сладковский муниципальный район | B170: Новоандреевское | C170: 71636435 | D170: сельское поселение
A171: Сладковский муниципальный район | B171: Сладковский муниципальный район | C171: 71636000 | D171: муниципальный район
A172: Сладковский муниципальный район | B172: Сладковское | C172: 71636445 | D172: сельское поселение
A173: Сладковский муниципальный район | B173: Степновское | C173: 71636450 | D173: сельское поселение
A174: Сладковский муниципальный район | B174: Усовское | C174: 71636455 | D174: сельское поселение
A175: Сорокинский муниципальный район | B175: Александровское | C175: 71638410 | D175: сельское поселение
A176: Сорокинский муниципальный район | B176: Ворсихинское | C176: 71638420 | D176: сельское поселение
A177: Сорокинский муниципальный район | B177: Готопутовское | C177: 71638430 | D177: сельское поселение
A178: Сорокинский муниципальный район | B178: Знаменщиковское | C178: 71638440 | D178: сельское поселение
A179: Сорокинский муниципальный район | B179: Пинигинское | C179: 71638470 | D179: сельское поселение
A180: Сорокинский муниципальный район | B180: Покровское | C180: 71638480 | D180: сельское поселение
A181: Сорокинский муниципальный район | B181: Сорокинский муниципальный район | C181: 71638000 | D181: муниципальный район
A182: Сорокинский муниципальный район | B182: Сорокинское | C182: 71638490 | D182: сельское поселение
A183: Тобольский муниципальный район | B183: Абалакское | C183: 71642405 | D183: сельское поселение
A184: Тобольский муниципальный район | B184: Ачирское | C184: 71642407 | D184: сельское поселение
A185: Тобольский муниципальный район | B185: Байкаловское | C185: 71642410 | D185: сельское поселение
A186: Тобольский муниципальный район | B186: Башковское | C186: 71642425 | D186: сельское поселение
A187: Тобольский муниципальный район | B187: Булашовское | C187: 71642415 | D187: сельское поселение
A188: Тобольский муниципальный район | B188: Верхнеаремзянское | C188: 71642420 | D188: сельское поселение
A189: Тобольский муниципальный район | B189: Ворогушинское | C189: 71642430 | D189: сельское поселение
A190: Тобольский муниципальный район | B190: Дегтяревское | C190: 71642435 | D190: сельское поселение
A191: Тобольский муниципальный район | B191: Ермаковское | C191: 71642440 | D191: сельское поселение
A192: Тобольский муниципальный район | B192: Загваздинское | C192: 71642445 | D192: сельское поселение
A193: Тобольский муниципальный район | B193: Карачинское | C193: 71642450 | D193: сельское поселение
A194: Тобольский муниципальный район | B194: Кутарбитское | C194: 71642455 | D194: сельское поселение
A195: Тобольский муниципальный район | B195: Лайтамакское | C195: 71642460 | D195: сельское поселение
A196: Тобольский муниципальный район | B196: Малозоркальцевское | C196: 71642462 | D196: сельское поселение
A197: Тобольский муниципальный район | B197: Надцынское | C197: 71642465 | D197: сельское поселение
A198: Тобольский муниципальный район | B198: Овсянниковское | C198: 71642470 | D198: сельское поселение
A199: Тобольский муниципальный район | B199: Полуяновское | C199: 71642473 | D199: сельское поселение
A200: Тобольский муниципальный район | B200: Прииртышское | C200: 71642475 | D200: сельское поселение
... 101 more rows

Sheet EGR_BY_ORGN_DATA (hidden)

Sheet FILE_STORE_DATA (hidden)
B2: GUID | C2: MIME | D2: EXTENSION | E2: CREATE_DATE | F2: FORCE_ALLOWED

Sheet LIST_SUBSIDIARY (hidden)

Sheet LIST_OKOPF (hidden)
A1: № | B1: Организационно-правовая форма
A2: NUMBER | B2: OKOPF_NAME
B3: 1 10 51 | Полные товарищества
B4: 1 10 64 | Товарищества на вере (коммандитные товарищества)
B5: 1 22 47 | Публичные акционерные общества
B6: 1 22 67 | Непубличные акционерные общества
B7: 1 23 00 | Общества с ограниченной ответственностью
B8: 1 30 00 | Хозяйственные партнерства
B9: 1 41 00 | Сельскохозяйственные производственные кооперативы
B10: 1 41 53 | Сельскохозяйственные артели (колхозы)
B11: 1 41 54 | Рыболовецкие артели (колхозы)
B12: 1 41 55 | Кооперативные хозяйства (коопхозы)
B13: 1 42 00 | Производственные кооперативы (кроме сельскохозяйственных производственных кооперативов)
B14: 1 53 00 | Крестьянские (фермерские) хозяйства
B15: 1 90 00 | Прочие юридические лица, являющиеся коммерческими организациями
B16: 2 01 01 | Гаражные и гаражно-строительные кооперативы
B17: 2 01 02 | Жилищные или жилищно-строительные кооперативы
B18: 2 01 03 | Жилищные накопительные кооперативы
B19: 2 01 04 | Кредитные потребительские кооперативы
B20: 2 01 05 | Кредитные потребительские кооперативы граждан
B21: 2 01 06 | Кредитные кооперативы второго уровня
B22: 2 01 07 | Потребительские общества
B23: 2 01 08 | Общества взаимного страхования
B24: 2 01 09 | Сельскохозяйственные потребительские перерабатывающие кооперативы
B25: 2 01 10 | Сельскохозяйственные потребительские сбытовые (торговые) кооперативы
B26: 2 01 11 | Сельскохозяйственные потребительские обслуживающие кооперативы
B27: 2 01 12 | Сельскохозяйственные потребительские снабженческие кооперативы
B28: 2 01 15 | Сельскохозяйственные потребительские животноводческие кооперативы
B29: 2 01 16 | Сельскохозяйственные потребительские растениеводческие кооперативы
B30: 2 01 21 | Фонды проката
B31: 2 02 01 | Политические партии
B32: 2 02 02 | Профсоюзные организации
B33: 2 02 10 | Общественные движения
B34: 2 02 11 | Органы общественной самодеятельности
B35: 2 02 17 | Территориальные общественные самоуправления
B36: 2 06 01 | Ассоциации (союзы) экономического взаимодействия субъектов Российской Федерации
B37: 2 06 03 | Советы муниципальных образований субъектов Российской Федерации
B38: 2 06 04 | Союзы (ассоциации) кредитных кооперативов
B39: 2 06 05 | Союзы (ассоциации) кооперативов
B40: 2 06 06 | Союзы (ассоциации) общественных объединений
B41: 2 06 07 | Союзы (ассоциации) общин малочисленных народов
B42: 2 06 08 | Союзы потребительских обществ
B43: 2 06 09 | Адвокатские палаты
B44: 2 06 10 | Нотариальные палаты
B45: 2 06 11 | Торгово-промышленные палаты
B46: 2 06 12 | Объединения работодателей
B47: 2 06 13 | Объединения фермерских хозяйств
B48: 2 06 14 | Некоммерческие партнерства
B49: 2 06 15 | Адвокатские бюро
B50: 2 06 16 | Коллегии адвокатов
B51: 2 06 19 | Саморегулируемые организации
B52: 2 06 20 | Объединения (ассоциации и союзы) благотворительных организаций
B53: 2 07 02 | Садоводческие или огороднические некоммерческие товарищества
B54: 2 07 16 | Товарищества собственников жилья
B55: 2 11 00 | Казачьи общества, внесенные в государственный реестр казачьих обществ в Российской Федерации
B56: 2 12 00 | Общины коренных малочисленных народов Российской Федерации
B57: 3 00 01 | Представительства юридических лиц
B58: 3 00 02 | Филиалы юридических лиц
B59: 3 00 03 | Обособленные подразделения юридических лиц
B60: 3 00 04 | Структурные подразделения обособленных подразделений юридических лиц
B61: 3 00 05 | Паевые инвестиционные фонды
B62: 3 00 06 | Простые товарищества
B63: 3 00 08 | Районные суды, городские суды, межрайонные суды (районные суды)
B64: 4 00 01 | Межправительственные международные организации
B65: 4 00 02 | Неправительственные международные организации
B66: 5 01 01 | Главы крестьянских (фермерских) хозяйств
B67: 5 01 02 | Индивидуальные предприниматели
B68: 5 02 01 | Адвокаты, учредившие адвокатский кабинет
B69: 5 02 02 | Нотариусы, занимающиеся частной практикой
B70: 6 51 41 | Федеральные казенные предприятия
B71: 6 51 42 | Казенные предприятия субъектов Российской Федерации
B72: 6 51 43 | Муниципальные казенные предприятия
B73: 6 52 41 | Федеральные государственные унитарные предприятия
B74: 6 52 42 | Государственные унитарные предприятия субъектов Российской Федерации
B75: 6 52 43 | Муниципальные унитарные предприятия
B76: 7 04 01 | Благотворительные фонды
B77: 7 04 02 | Негосударственные пенсионные фонды
B78: 7 04 03 | Общественные фонды
B79: 7 04 04 | Экологические фонды
B80: 7 14 00 | Автономные некоммерческие организации
B81: 7 15 00 | Религиозные организации
B82: 7 16 01 | Государственные корпорации
B83: 7 16 02 | Государственные компании
B84: 7 16 10 | Отделения иностранных некоммерческих неправительственных организаций
B85: 7 51 01 | Федеральные государственные автономные учреждения
B86: 7 51 03 | Федеральные государственные бюджетные учреждения
B87: 7 51 04 | Федеральные государственные казенные учреждения
B88: 7 51 05 | Государственные внебюджетные фонды Российской Федерации
B89: 7 52 01 | Государственные автономные учреждения субъектов Российской Федерации
B90: 7 52 03 | Государственные бюджетные учреждения субъектов Российской Федерации
B91: 7 52 04 | Государственные казенные учреждения субъектов Российской Федерации
B92: 7 53 00 | Государственные академии наук
B93: 7 54 01 | Муниципальные автономные учреждения
B94: 7 54 03 | Муниципальные бюджетные учреждения
B95: 7 54 04 | Муниципальные казенные учреждения
B96: 7 55 00 | Частные учреждения
B97: 7 55 02 | Благотворительные учреждения
B98: 7 55 05 | Общественные учреждения

Sheet RPT_STATISTICS (hidden)
A1: PRD2_NAME | B1: RPT_STATUS | C1: RPT_DATE
A2: Январь | B2: Принят | C2: 19.02.2024 09:16:11
A3: Февраль | B3: Принят | C3: 20.03.2024 12:10:23
